{"text_format":"1","workbook":"xlsx","n_sheets":6,"sheets":["PLANTILLA","IMPORTANTE","ESTRUCTURA CORE","Tipo y subtipo cotizantes","Subsistemas x Tipo de Pago","TABLAS"],"not_rendered":{"charts":0,"images":8,"macros":1,"external_links":0,"defined_names":36,"comments":1,"pivot_tables":0},"unopened":[],"bounds":{"document_bytes":16777216,"sheet_cells":100000,"rows_first":2000,"rows_last":500,"rows_between":2000,"halvings":0,"cell_chars":16384,"cell_head_chars":4096},"cells_cut":0,"cells_raw":0,"read":"whole","date_system":"1900"}

{"sheet":"PLANTILLA","index":0,"n_rows":8,"n_cols":61,"rows_kept":8,"cut":false,"hidden":false,"merged":[[5,1,5,13],[5,14,5,15],[5,17,5,21],[5,22,5,29],[1,23,3,23],[1,24,3,24],[1,25,3,25],[1,27,3,27]]}
[null,"Version 15.1",null,null,{"$f":"IF(E5=1,\"PUBLICA\",\"\")","v":""},null,null,null,null,null,null,null,null,null,null,null,null,null,null,null,null,null,null,null,null,null,null,null,null,null,null,null,null,null,null,null,null,null,null,null,null,null,null,null,null,null,null,null,null,null,null,null,null,null,null,null,null,null,null,".",{"$f":"IFERROR(VLOOKUP(BI3,TABLAS!$AA$4:$AB$103,2,0),IF($A$1=\"UGPP\",\"¿NATURALEZA JURIDICA Y TIPO DE APORTANTE?\",\".\"))","v":"."}]
[null,null,null,null,null,null,null,null,null,null,null,null,null,null,null,null,null,null,null,null,null,null,null,{"$f":"IF(AND(SUM(X8:X1000000)>0,IFERROR(HLOOKUP(\"TP INCAPACIDAD\",$BI$3:$XFD$3,1,0),1)=1),\"Recuerde ingresar la columna con  TIPO DE PAGO Incapacidades y registrar los valores por este concepto\",\"\")","v":""},{"$f":"IF(AND(SUM(Y8:Y1000000)>0,IFERROR(HLOOKUP(\"TP INCAPACIDAD\",$BI$3:$XFD$3,1,0),1)=1),\"Recuerde ingresar la columna con  TIPO DE PAGO Incapacidades y registrar los valores por este concepto\",\"\")","v":""},{"$f":"IF(AND(SUM(Z8:Z1000000)>0,IFERROR(HLOOKUP(\"TP LICENCIA REMUNERADA\",$BI$3:$XFD$3,1,0),1)=1),\"Recuerde ingresar la columna con  TIPO DE PAGO Permiso o licencia remunerada y registrar los valores por este concepto\",\"\")","v":""},null,{"$f":"IF(AND(SUM(AB8:AB1000000)>0,IFERROR(HLOOKUP(\"TP VACACIONES\",$BI$3:$XFD$3,1,0),1)=1),\"Recuerde ingresar la columna con  TIPO DE PAGO Vacaciones y registrar los valores por este concepto\",\"\")","v":""},null,null,null,null,null,null,null,null,null,null,null,null,null,null,null,null,null,null,null,null,null,null,null,null,null,null,null,null,null,null,null,"CAMPO RESERVADO PARA LA UGPP"]
[null,null,null,null,{"$f":"IF(E5=1,\"Publica\",\"No Publica\")","v":"No Publica"},{"$f":"IFERROR(VLOOKUP(E5&F5,TABLAS!R4:S40,2,0),\"\")","v":""},null,null,null,null,null,null,null,null,null,null,null,null,null,null,null,null,null,null,null,null,null,null,null,null,null,null,null,null,null,null,null,null,null,null,null,null,null,null,null,null,null,null,null,null,null,null,null,null,null,null,null,null,null,"TIPO DE PAGO"]
[null,"TIPO DOCUMENTO APORTANTE","NUMERO DOCUMENTO APORTANTE","RAZON SOCIAL","NATURALEZA JURIDICA","TIPO DE APORTANTE","CAMPO RESERVADO PARA LA UGPP","SUJETO PASIVO DEL IMPUESTO SOBRE LA RENTA PARA LA EQUIDAD CREE","CAMPO RESERVADO PARA LA UGPP","CAMPO RESERVADO PARA LA UGPP",null,null,null,null,null,null,null,null,null,null,null,null,null,null,null,null,null,null,null,null,null,null,null,null,null,null,null,null,null,null,null,null,null,null,null,null,null,null,null,null,null,null,null,null,null,null,null,null,null,"CAMPO RESERVADO PARA LA UGPP"]
[null,null,null,null,null,null,null,null,null,null,null,null,null,null,null,null,null,null,null,null,null,null,null,null,null,null,null,null,null,null,null,null,null,null,null,null,null,null,null,null,null,null,null,null,null,null,null,null,null,null,null,null,null,null,null,null,null,null,null,"CAMPO RESERVADO PARA LA UGPP",{"$f":"IF($A$1=\"UGPP\",IFERROR(VLOOKUP(BI3,TABLAS!$AA$4:$AC$103,3,0),IF($A$1=\"UGPP\",\"¿TIPO DE PAGO?\",\"\")), \"\")","v":""}]
[null,"Datos básicos del trabajador o asociado",null,null,null,null,null,null,null,null,null,null,null,null,"Periodo nómina",null,null,"Novedades",null,null,null,null,"Reporte de días",null,null,null,null,null,null,null,null,null,null,null,null,null,null,null,null,null,null,null,null,null,null,null,null,null,null,null,null,null,null,null,null,null,null,null,null,"cuenta contable"]
["ORDEN","TIPO COTIZANTE","SUBTIPO COTIZANTE","CONDICION ESPECIAL EMPRESA","CAMPO RESERVADO PARA LA UGPP","EXTRANJERO NO OBLIGADO A COTIZAR PENSION","COLOMBIANO EN EL EXTERIOR","ACTIVIDAD ALTO RIESGO PENSION","TIPO DOCUMENTO ACTUAL DEL COTIZANTE","NUMERO DOCUMENTO ACTUAL DEL COTIZANTE","TIPO DOCUMENTO CON EL QUE REALIZO APORTES DEL COTIZANTE","NUMERO DOCUMENTO CON EL QUE REALIZO APORTES DEL COTIZANTE","NOMBRE COTIZANTE","CARGO DEL TRABAJADOR O ASOCIADO","ANIO","MES","SALARIO INTEGRAL","NOVEDAD INCAPACIDAD","NOVEDAD LIC.MATERNIDAD O PATERNIDAD","NOVEDAD DE PERMISO O LICENCIA REMUNERADA","NOVEDAD DE SUSPENSION","NOVEDAD VACACIONES","NUMERO DIAS TRABAJADOS EN EL MES","NUMERO DIAS INCAPACIDADES EN EL MES","NUMERO DIAS LICENCIA DE MATERNIDAD O PATERNIDAD","NUMERO DIAS DE PERMISO O LICENCIA  REMUNERADAS EN EL MES","NUMERO DIAS DE SUSPENSION, PERMISO O LICENCIA  NO REMUNERADAS EN EL MES","NUMERO DE DIAS VACACIONES DISFRUTADAS EN EL MES O DESCANSO ANUAL REMUNERADO","NUMERO DIAS DE HUELGA LEGALMENTE DECLARADA","TOTAL DIAS REPORTADOS EN EL MES","INGRESO","FECHA ING","RETIRO","FECHA RET","CAMPO RESERVADO PARA LA UGPP","CAMPO RESERVADO PARA LA UGPP","CAMPO RESERVADO PARA LA UGPP","CAMPO RESERVADO PARA LA UGPP","CAMPO RESERVADO PARA LA UGPP","CAMPO RESERVADO PARA LA UGPP","OBSERVACIONES APORTANTE","CAMPO RESERVADO PARA LA UGPP","CAMPO RESERVADO PARA LA UGPP","CAMPO RESERVADO PARA LA UGPP","CAMPO RESERVADO PARA LA UGPP","CAMPO RESERVADO PARA LA UGPP","CAMPO RESERVADO PARA LA UGPP","CAMPO RESERVADO PARA LA UGPP","CAMPO RESERVADO PARA LA UGPP","CAMPO RESERVADO PARA LA UGPP","CAMPO RESERVADO PARA LA UGPP","CAMPO RESERVADO PARA LA UGPP","CAMPO RESERVADO PARA LA UGPP","CAMPO RESERVADO PARA LA UGPP","CAMPO RESERVADO PARA LA UGPP","CAMPO RESERVADO PARA LA UGPP","CAMPO RESERVADO PARA LA UGPP","CAMPO RESERVADO PARA LA UGPP","CAMPO RESERVADO PARA LA UGPP","NOMBRE CONCEPTO DE PAGO APORTANTE"]
[1,null,null,null,null,null,null,null,null,null,null,null,null,null,null,null,null,{"$f":"IF(X8>0,\"X\",\"\")","v":""},{"$f":"IF(Y8>0,\"X\",\"\")","v":""},{"$f":"IF(Z8>0,\"X\",\"\")","v":""},{"$f":"IF((AA8+AC8)>0,\"X\",\"\")","v":""},{"$f":"IF(AB8>0,\"X\",\"\")","v":""},null,null,null,null,null,null,null,{"$f":"IF(SUM(W8:AC8)=0,0,IF(AND(SUM(W8:AC8)<30,AE8=\"\",AG8=\"\"),\"Ingreso o Retiro\",IF(SUM(W8:AC8)>30,\"Días mayores a 30\",IF(AND(AE8=\"X\",OR(YEAR(AF8)<>O8,MONTH(AF8)<>P8)),\"Fecha ing.incorrecta\",IF(AND(AG8=\"X\",OR(YEAR(AH8)<>O8,MONTH(AH8)<>P8)),\"Fecha Ret.incorrecta\",SUM(W8:AC8))))))","v":0},{"$f":"IF(AF8=\"\",\"\",\"X\")","v":""},null,{"$f":"IF(AH8=\"\",\"\",\"X\")","v":""}]

{"sheet":"IMPORTANTE","index":1,"n_rows":0,"n_cols":0,"rows_kept":0,"cut":false,"hidden":true,"merged":[]}

{"sheet":"ESTRUCTURA CORE","index":2,"n_rows":9,"n_cols":153,"rows_kept":9,"cut":false,"hidden":true,"merged":[]}
[null,null,null,null,null,null,null,null,null,null,null,null,null,null,null,null,null,null,null,null,null,null,null,null,null,null,null,null,null,null,null,null,null,null,null,null,null,null,null,null,null,null,null,null,null,"justificacion cambio de la UGPP","(SOLO INTERNO UGPP) Campo libre alfanumérico que lo debe llenar el auditor antes de realizar el cargue de la nómina al CORE"]
[null,null,null,null,null,null,null,null,null,null,null,null,null,null,null,null,null,null,null,null,null,null,null,null,null,null,null,null,null,null,null,null,null,null,null,null,null,null,null,null,null,null,null,null,null,"TIPO DE PAGO UGPP","(SOLO INTERNO UGPP) Tipo de pago: obligatorio puede ser: TP SALARIAL; TP NO SALARIAL; TP NO SALARIAL MARCADO SALARIAL POR LA UGPP; TP COMPENSACIÓN ORDINARIA; TP COMPENSACIÓN EXTRAORDINARIA; TP NO COMPENSACIÓN; TP NO COMPENSACIÓN MARCADA COMO COMP.EXTRAORDINARIA; TP INCAPACIDAD; TP VACACIONES; TP VACACIONES TERMINACION DE CONTRATO; TP LICENCIA REMUNERADA; TP NO SALARIAL PUBLICA; TP NO SALARIAL PUBLICA NO ACEPTADO UGPP; TP CONTRATISTA; TP NO CONTRATISTA\n\n* Con la tabla ubicada en la hoja \"Subsistemás x Tipo de Pago\" Validar que el \"TIPO DE PAGO UGPP\" corresponda al \"TIPO DE APORTANTE\"  y  \"NATURALEZA JURIDICA\"."]
[null,"TIPO DOCUMENTO APORTANTE","número DOCUMENTO APORTANTE","RAZON SOCIAL","NATURALEZA JURIDICA","TIPO DE APORTANTE","APORTA ESAP Y MEN","SUJETO PASIVO DEL IMPUESTO SOBRE LA RENTA PARA LA EQUIDAD CREE","ID_EXPEDIENTE","TIPO DE ACTO",null,null,null,null,null,null,null,null,null,null,null,null,null,null,null,null,null,null,null,null,null,null,null,null,null,null,null,null,null,null,null,null,null,null,null,"NOMBRE CONCEPTO UGPP","(SOLO INTERNO UGPP) Obligatorio, pueden ser uno de las siguientes opciones, teniendo en cuenta la tabla ubicada en la hoja \"Subsistemás x Tipo de Pago\" Validar que el \"NOMBRE CONCEPTO UGPP\" corresponda al \"TIPO DE PAGO UGPP\" :\nSUELDOS\nAPOYO SOSTENIMIENTO\nCOMISIONES\nHORAS EXTRAS\nBONIFICACIONES\nPRImás\nVIATICOS\nAUXILIOS\nVACACIONES\nVACACIONES TERMINACION DE CONTRATO\nINCAPACIDADES\nLICENCIA REMUNERADA\nCOMP. ORDINARIA\nCOMP. EXTRAORDINARIA\nOTROS PAGOS"]
[null,"Campo Obligatorio.  CC, CE, TI, PA, NI","Campo Obligatorio.  numérico en caso de que el documento contenga letras, solo se registraran los números","Campo Obligatorio.  Nombre del aportante","Campo Obligatorio:  \n1 Pública\n2 Privada\n3 Mixta\n4 Organismos multilaterales\n5 Entidades de derecho público no sometidas a la legislación colombiana","Campo Obligatorio.  \n1 Empleador.\n2 Independiente.\n3 Entidades o Universidades Públicas con régimen especial en Salud.\n4 Agremiaciones o asociaciones.\n5 Cooperativas y Precooperativas de Trabajo Asociado\n6 Misiones diplomáticas, consulares o de organismos multilaterales no sometidos a la legislación colombiana.\n7 Organizaciones Administradoras del Programa de Hogares de Bienestar.\n8 Pagador de aportes de los concejales municipales o distritales.","Aplica solo para empresas públicas ver (celda E4) \"1 Pública\" ; si existe una marca \"X\" el porcentaje del SENA  debe ser del 0,5%","Selección obligatorio para empresas privadas y de economia mixta,  ver (celda E4) \"2 Privada\" y \"3 Mixta\" Se selecciona \"SI\" o \"NO\"  de acuerdo si el aportante tiene la calidad de sujetos pasivos del impuesto sobre la renta para la equidad – CREE.\n","(SOLO INTERNO UGPP) \nnúmero del expediente","(SOLO INTERNO UGPP)\n\nREQUERIMIENTO\nAMPLIACIÓN\nLIQUIDACIÓN\nRECURSO",null,null,null,null,null,null,null,null,null,null,null,null,null,null,null,null,null,null,null,null,null,null,null,null,null,null,null,null,null,null,null,null,null,null,null,"Subsistema Asociado","(SOLO INTERNO UGPP) Subsistema asociado: 1 Salud ; 2 Pension ; 3 ARL ; 4 CCF; 5 SENA ; 6 ICBF\n\n* Con base a la tabla ubicada en la hoja \"Subsistemás x Tipo de Pago\"  el validador creará una secuencia de números separados por punto y coma \";\" correspondientes a cada uno de los subsistemás en los cuales se debe sumar el pago,  ejemp:  1;2;3;4;5;6;7   o   1;2    o    5;6;7\n* En el caso de que el \"TIPO DE PAGO UGPP\" sea \"TP NO SALARIAL PUBLICA NO ACEPTADO UGPP\" por tratarse de un pago que puede verse afectado por varias normás especificas para cada entidad, el validador no creara ningun tipo de lista, lo unico que validara es que la información registrada sea una lista de números entre 1 y 6 separados por punto y coma \";\" o vacio\n \nEsto quiere decir que el concepto de pago relacionado en cada columna debe sumarse en los IBCs de cada subsistema de acuerdo a lo relacionado en este campo, ejemplo: si en este campo esta registrado 5;6;7 quiere decir que los valores registrados en esta columna deben sumarse a los subsistemás de ICBF, SENA y Caja de Compensacion Familiar",null,null,null,null,null,null,null,null,null,null,null,null,null,null,null,null,null,null,null,null,null,null,null,null,null,555,null,null,null,null,null,null,null,null,null,null,null,null,null,null,null,null,null,null,null,null,null,null,null,null,null,555,null,null,null,null,null,null,5555,55,null,null,null,null,null,null,null,null,null,null,null,null,5555]
[null,null,null,null,null,null,null,null,null,null,null,null,null,null,null,null,null,null,null,null,null,null,null,null,null,null,null,null,null,null,null,null,null,null,null,null,null,null,null,null,null,null,null,null,null,"cuenta contable","Obligatorio, campo numérico y que permita el carácter especial de punto y coma \";\" "]
["ORDEN","TIPO COTIZANTE","SUBTIPO COTIZANTE","CONDICION ESPECIAL EMPRESA","EXTRANJERO NO OBLIGADO A COTIZAR PENSION","COLOMBIANO EN EL EXTERIOR","ACTIVIDAD ALTO RIESGO PENSION","TIPO DOCUMENTO ACTUAL DEL COTIZANTE","número DOCUMENTO ACTUAL DEL COTIZANTE","TIPO DOCUMENTO CON EL QUE REALIZO APORTES DEL COTIZANTE","número DOCUMENTO CON EL QUE REALIZO APORTES DEL COTIZANTE","NOMBRE COTIZANTE","CARGO DEL TRABAJADOR","AÑO","MES","SALARIO INTEGRAL","NOVEDAD INCAPACIDAD","NOVEDAD LIC.MATERNIDAD O PATERNIDAD","NOVEDAD DE PERMISO O LICENCIA REMUNERADA","NOVEDAD DE SUSPENSIÓN","NOVEDAD VACACIONES","NÚMERO DÍAS TRABAJADOS EN EL MES","NÚMERO DÍAS INCAPACIDADES EN EL MES","NÚMERO DÍAS LICENCIA DE MATERNIDAD O PATERNIDAD","NÚMERO DÍAS DE PERMISO O LICENCIA  REMUNERADAS EN EL MES","NÚMERO DÍAS DE SUSPENSIÓN, PERMISO O LICENCIA  NO REMUNERADAS EN EL MES","NÚMERO DE DÍAS VACACIONES DISFRUTADAS EN EL MES","NÚMERO DÍAS DE HUELGA LEGALMENTE DECLARADA","TOTAL DÍAS REPORTADOS EN EL MES","INGRESO","FECHA ING","RETIRO","FECHA RET","cálculo ACTUARIAL","VALOR cálculo ACTUARIAL","SALARIO BASICO","IBC EN CONCURRENCIA DE INGRESOS CON OTROS APORTANTES","OBSERVACIONES APORTANTE","OBSERVACIONES UGPP","OBSERVACIONES APORTANTE SALUD","OBSERVACIONES APORTANTE PENSION","OBSERVACIONES APORTANTE ARL","OBSERVACIONES APORTANTE CCF","OBSERVACIONES APORTANTE SENA","OBSERVACIONES APORTANTE ICBF","NOMBRE CONCEPTO DE PAGO APORTANTE","Obligatorio, no aplicar ninguna validación,  el nombre del concepto de pago como nos lo reporta el aportante en la nómina","cálculo IBC PERMISOS REMUNERADOS","cálculo IBC SUSPENSIONES O PERMISOS NO REMUNERADOS","cálculo IBC VACACIONES","cálculo IBC HUELGA","días_cot_pension  ","días_cot_salud","días_cot_rprof  ","días_cot_ccf  ","TOTAL PAGOS NO SALARIALES","TOTAL REMUNERADO","PORCENTAJE PAGOS NO SALARIALES","EXCEDENTE LIMITE PAGO NO SALARIAL","código ADMINISTRADORA SALUD","Nombre corto administradora SALUD","IBC PAGOS EN nómina SALUD","TOTAL IBC CALCULADO SALUD","TARIFA SALUD","TARIFA SALUD PARA SUSPENSIONES","cotización OBLIGATORIA CALCULADA SALUD","días COTIZADOS PILA SALUD","IBC pila SALUD","TARIFA PILA SALUD","cotización PAGADA PILA SALUD","AJUSTE SALUD","CONCEPTO AJUSTE SALUD","TIPO DE INCUMPLIMIENTO SALUD","ANALISIS COMPARATIVO CON ETAPA ANTERIOR SALUD","código ADMINISTRADORA PENSIÓN","Nombre corto Administradora PENSIÓN","IBC PAGOS EN nómina PENSIÓN","TOTAL IBC CALCULADO PENSIÓN","TARIFA PENSIÓN","cotización OBLIGATORIA PENSIÓN","días COTIZADOS PILA PENSIÓN","IBC pila PENSIÓN","TARIFA PILA PENSIÓN","cotización PAGADA PILA PENSIÓN","AJUSTE PENSIÓN","CONCEPTO AJUSTE PENSION","TIPO DE INCUMPLIMIENTO PENSIÓN","ANALISIS COMPARATIVO CON ETAPA ANTERIOR PENSION","TARIFA FSP Subcuenta de solidaridad","TARIFA FSP Subcuenta de Subsistencia","cotización OBLIGATORIA FSP Subcuenta de solidaridad","cotización OBLIGATORIA FSP Subcuenta de Subsistencia","cotización PAGADA PILA FSP Subcuenta de solidaridad","cotización PAGADA PILA FSP Subcuenta de Subsistencia","AJUSTE FSP Subcuenta de Solidaridad","AJUSTE FSP Subcuenta de Subsistencia","CONCEPTO AJUSTE FSP","TIPO DE INCUMPLIMIENTO FSP","ANALISIS COMPARATIVO CON ETAPA ANTERIOR FSP","TARIFA PENSIÓN ADICIONAL ACT. ALTO RIESGO","cotización OBLIGATORIA ADICIONAL ACT. ALTO RIESGO","TARIFA PILA PENSIÓN ADICIONAL ACT. ALTO RIESGO","cotización PAGADA PILA PENSIÓN ADICIONAL ACT. ALTO RIESGO","AJUSTE PENSIÓN ADICIONAL ACT. ALTO RIESGO","CONCEPTO AJUSTE PENSIÓN ADICIONAL ACT. ALTO RIESGO","TIPO DE INCUMPLIMIENTO PENSIÓN ADICIONAL ACT. ALTO RIESGO","ANALISIS COMPARATIVO CON ETAPA ANTERIOR ALTO RIESGO","cálculo ACTUARIAL (valor actualizado)","código ADMINISTRADORA ARL","Nombre Corto ADMINISTRADORA ARL","IBC ARL","TARIFA ARL","cotización OBLIGATORIA ARL","días COTIZADOS PILA ARL","IBC pila ARL","TARIFA PILA ARL","cotización PAGADA PILA ARL","AJUSTE ARL","CONCEPTO AJUSTE ARL","TIPO DE INCUMPLIMIENTO ARL","ANALISIS COMPARATIVO CON ETAPA ANTERIOR ARL","código ADMINISTRADORA CCF","Nombre corto administradora CCF","IBC CCF","TARIFA CCF","cotización OBLIGATORIA CCF","días COTIZADOS PILA CCF","IBC pila CCF","TARIFA PILA CCF","cotización PAGADA PILA CCF","AJUSTE CCF","CONCEPTO AJUSTE CCF","TIPO DE INCUMPLIMIENTO CCF","ANALISIS COMPARATIVO CON ETAPA ANTERIOR CCF","IBC SENA","TARIFA SENA","cotización OBLIGATORIA SENA","TARIFA PILA SENA","cotización PAGADA PILA SENA","AJUSTE SENA","CONCEPTO AJUSTE SENA","TIPO DE INCUMPLIMIENTO SENA","ANALISIS COMPARATIVO CON ETAPA ANTERIOR SENA","IBC ICBF","TARIFA ICBF","cotización OBLIGATORIA ICBF","TARIFA PILA ICBF","cotización PAGADA PILA ICBF","AJUSTE ICBF","CONCEPTO AJUSTE ICBF","TIPO DE INCUMPLIMIENTO ICBF","ANALISIS COMPARATIVO CON ETAPA ANTERIOR ICBF","PLANILLAS PILA CARGADA"]
[]
["CONSECUTIVO DE CONTROL númeroS ENTEROS","Campo numérico, Obligatorio.  Tipo cotizante (campo ya creado en el CORE)\n\nEstos tipos de cotizantes se relacionan en la tabla Tipo de Cotizante Vs Subsistema de la malla de Validación emitida por el Ministerio de Salud. La cual se muestra en la hoja \"malla de Validación\".\n\nEn esta tabla se encuentran relacionados los tipos de cotizante frente a los subsistemás de la seguridad social, identificando con una \"X\" la obligatoriedad de liquidar cada uno de los diferentes subsistemás. \n\nDe acuerdo a la Tabla Tipo de Cotizante Vs Subsistema, el aplicativo debe validar en cada subsistema la obligatoriedad de liquidar aportes;  en caso de que exista tal obligatoriedad, se deben aplicar las reglas estipuladas en cada uno de los campos de \"IBC CORE\" de los diferentes subsistemás. en caso contrario, no se debe aplicar ningún cálculo ni validación para el subsistema.","Subtipo de cotizante  (campo ya creado en el CORE) los cuales son números del 1 al 12.\n\nel efecto de este campo es que al registrarse un codigo entre el 1 al 9 no se debe liquidar los subsistemás de Pensión, FSP ni Aporte Adicional a Pensión por Alto Riesgo.\n\n1 Dependiente pensionado por vejez activo\n2 Independiente pensionado por vejez activo\n3 Cotizante no obligado a cotizar a pensión por edad\n4 Cotizante con requisitos cumplidos para pensión\n5 Cotizante a quien se le ha reconocido indemnización sustitutiva o devolución de saldos\n6 Cotizante perteneciente a un régimen de exceptuado de pensiones a entidades autorizadas para recibir aportes exclusivamente de un grupo de sus propios trabajadores.\n9 cotizante pensionado con mesada superior a 25 smlmv\n10 residente en el exterior afiliado voluntario al sistema general de pensiones y/o  afiliado  facultativo al sistema de subsidio familiar decreto 682 de 2014\n11 conductores del servicio público de transporte terrestre automotor individual de pasajeros en vehículos taxi decreto 1047 de 2014\n12 conductores servicio taxi no aporte pensión dec. 1047","Celda vacia \"\"\nLEY 590/2000 AÑO 1\nLEY 590/2000 AÑO 2\nLEY 590/2000 AÑO 3\nLEY 1429 Col AÑO 1,2\nLEY 1429 Col AÑO 3\nLEY 1429 Col AÑO 4\nLEY 1429 Col AÑO 5\nLEY 1429 AGV AÑO 1 - 8\nLEY 1429 AGV AÑO 9\nLEY 1429 AGV AÑO 10\nSoc.declaradas ZF. Art20 Ley1607\nExcepción SENA Art.181,Ley 223/95\nConv.Sub.Fam.Art.17Ley 344/96","se marca \"X\" si el trabajador es un extranjero y en tal caso no se debe liquidar los los subsistemás de Pensión, FSP ni Aporte Adicional a Pensión por Alto Riesgo","se marca \"X\" si el trabajador esta laborando fuera de Colombia","se marca \"X\" si el cotizante desarrolla alguna actividad de alto riesgo para pensión, en tal caso debe registrarse una tarifa de un 10% en la columna \"TARIFA CORE PENSIÓN ADICIONAL ACT. ALTO RIESGO\" y liquidarse el aporte en la columna \"cotización OBLIGATORIA  (CALCULADO CORE) ADICIONAL ACT. ALTO RIESGO\"","Campo Obligatorio.  CC, CE, TI, PA, NI","Campo Obligatorio.  Numérico. En caso de que el documento contenga letras, solo se registran los números.","Campo Obligatorio.  CC, CE, TI, PA, NI","Campo Obligatorio.  Numérico. En caso de que el documento contenga letras, solo se registran los números.\n\nDebe existir un unico registro por cada \"número DOCUMENTO CON EL QUE REALIZO APORTES DEL COTIZANTE\"-periodo (AÑO-MES)","Campo Obligatorio","Campo alfanumérico","Número de 4 dígitos.  Campo numérico.  Obligatorio y corresponde al año de la nómina que se está fiscalizando, debe estar entre el año 2007 el actual","Campo Obligatorio.  Valores permitidos del 1 a 12   corresponde al mes de la nómina que se esta fiscalizando. ","Si este campo se presenta marcado con \"X\"  ","se marca \"X\" si durante el mes el trabajador estuvo en incapacidad.\nDebe estar marcada con \"X\" si el \"NÚMERO DÍAS INCAPACIDADES EN EL MES\" > 0\n","se marca \"X\" si durante el mes el trabajador estuvo en licencia de maternidad o paternidad.\nEs obligatorio si el \"NÚMERO DÍAS LICENCIA DE MATERNIDAD O PATERNIDAD\" > 0","se marca \"X\" si durante el mes el trabajador tuvo algun permiso remunerado.\nEs obligatorio si el \"NÚMERO DÍAS DE PERMISO O LICENCIA  REMUNERADAS EN EL MES\" > 0","se marca \"X\" si durante el mes el trabajador tuvo alguna suspension en su contrato de trabajo.\nEs obligatorio si la suma de (\"NÚMERO DÍAS DE SUSPENSIÓN, PERMISO O LICENCIA  NO REMUNERADAS EN EL MES\" + \"NÚMERO DÍAS DE HUELGA LEGALMENTE DECLARADA\") > 0","se marca \"X\" si durante el mes el trabajador estuvo en periodo de vacaciones.\nEs obligatorio si el \"número DE DÍAS VACACIONES DISFRUTADAS EN EL MES\" > 0","* Valor numérico entero positivo, no puede ser mayor a 30\n* valor no puede ser igual a 30 si alguna novedad de VACACIONES, INCAPACIDAD, LIC.MATERNIDAD O PATERNIDAD, SUSPENSIÓN  o  PERMISO O LICENCIA REMUNERADA  esta marcada CON \"X\"","* Valor numérico entero positivo, no puede ser mayor a 30\n* Si la NOVEDAD DE INCAPACIDAD esta marcada con \"X\",  el valor de este campo debe ser mayor a cero (0) y el valor de los conceptos  con  \"TIPO DE PAGO UGPP\" = \"TP INCAPACIDAD\" debe ser mayor a cero (0)","* Valor numérico entero positivo, no puede ser mayor a 30\n* Si la NOVEDAD DE LICENCIA DE MATERNIDAD O PATERNIDAD esta marcada con \"X\",  el valor de este campo debe ser mayor a cero (0) y el valor de los conceptos  con  \"TIPO DE PAGO UGPP\" = \"TP INCAPACIDAD\" debe ser mayor a cero (0)","* Valor numérico entero positivo, no puede ser mayor a 30\n* Si la NOVEDAD DE PERMISO O LICENCIA REMUNERADA esta marcada con \"X\",  el valor de este campo debe ser mayor a cero (0) y el valor de los conceptos  con  \"TIPO DE PAGO UGPP\" = \"TP LICENCIA REMUNERADA\" debe ser mayor a cero (0)\n","* Valor numérico entero positivo, no puede ser mayor a 30\n* Si el valor de este campo es mayor a cero (0) el campo NOVEDAD SE SUSPENSIÓN debe estar marcado con \"X\"","* Valor numérico entero positivo, no puede ser mayor a 30\n* Si la NOVEDAD VACACIONES esta marcada con \"X\",  el valor de este campo debe ser mayor a cero (0)","* Valor numérico entero positivo, no puede ser mayor a 30\n* Si el valor de este campo es mayor a cero (0) el campo NOVEDAD SE SUSPENSIÓN debe estar marcado con \"X\"","Suma de la columna \"U\" a la columna \"AA\" entre 1 y 30,  solo puede ser inferior a 30 en caso de existir novedad de ingreso o retiro ","No obligatorio se marca \"X\" en caso de existir la novedad","Es obligatorio si la novedad de ingreso esta marcada y debe corresponder al mes de la nómina fiscalizada.","* No obligatorio se marca \"X\" en caso de existir la novedad","Es obligatorio si la novedad de retiro esta marcada y debe corresponder al mes de la nómina fiscalizada.","(SOLO INTERNO UGPP) Se marca \"X\" si hay lugar a cálculo actuarial","(SOLO INTERNO UGPP) Obligatorio, valor entero mayor o igual a cero (0), si el campo \"cálculo ACTUARIAL\" esta marcado con \"X\"","Formato numérico entero, no obligatorio","Formato numérico entero, no obligatorio","(SOLO INTERNO UGPP) Campo alfanumérico","(SOLO INTERNO UGPP) Campo alfanumérico","(SOLO INTERNO UGPP) Campo alfanumérico","(SOLO INTERNO UGPP) Campo alfanumérico","(SOLO INTERNO UGPP) Campo alfanumérico","(SOLO INTERNO UGPP) Campo alfanumérico","(SOLO INTERNO UGPP) Campo alfanumérico","(SOLO INTERNO UGPP) Campo alfanumérico",null,"Formato numérico entero, obligatorio en los siguientes casos:\n1* si la columna \"NÚMERO DÍAS TRABAJADOS EN EL MES\" >0  y  NOMBRE CONCEPTO UGPP = \"SUELDOS\" o \"APOYO SOSTENIMIENTO\"\n\n2* si las columnas \"NOVEDAD INCAPACIDAD\" y/o \"NOVEDAD LIC.MATERNIDAD O PATERNIDAD\" estan marcadas con \"X\"  y el TIPO DE PAGO UGPP = \"TP INCAPACIDAD\".\n\n3* si la columna \"NÚMERO DÍAS DE PERMISO O LICENCIA  REMUNERADAS EN EL MES\" > 0  y el TIPO DE PAGO UGPP = \"TP LICENCIA REMUNERADA\"","Este campo lo debe calcular el LIQUIDADOR de acuerdo al artículo 70 del Decreto 806 de 1998: si la columna \"NÚMERO DÍAS DE PERMISO O LICENCIA REMUNERADAS EN EL MES\"  es mayor a cero (0),  a partir de el \"número DOCUMENTO ACTUAL DEL COTIZANTE\"  se debe tomar el TOTAL IBC CALCULADO SALUD del mes inmediatamente anterior y dividirlo entre el TOTAL DÍAS REPORTADOS EN EL MES (anterior)  y el resultado se multiplica por los días reportados en \"NÚMERO DÍAS DE PERMISO O LICENCIA   REMUNERADAS EN EL MES\" (actual).\n\nEn caso de no existir registro de nómina del mes anterior se acude a PILA depurada, tomando la información del IBC de salud reportado en el mes anterior dividido en los días de salud reportados para este mismo mes, en caso de no haber mes anterior de PILA,  reportar un error que informe de la inexistencia de información base para realizar el cálculo requerido.","Este campo lo debe calcular el LIQUIDADOR de acuerdo al artículo 71 del Decreto 806 de 1998: si la columna \"NÚMERO DÍAS DE SUSPENSIÓN, PERMISO O LICENCIA   NO REMUNERADAS EN EL MES\"  es mayor a cero (0), a partir de el \"número DOCUMENTO ACTUAL DEL COTIZANTE\"  se debe tomar el TOTAL IBC CALCULADO SALUD del mes inmediatamente anterior y dividirlo entre el TOTAL DÍAS REPORTADOS EN EL MES (anterior)  y el resultado se multiplica por los días reportados en \"NÚMERO DÍAS DE SUSPENSIÓN, PERMISO O LICENCIA  NO REMUNERADAS EN EL MES\" (actual).\n\nEn caso de no existir registro de nómina del mes anterior se acude a PILA depurada, tomando la información del IBC de salud reportado en el mes anterior dividido en los días de salud reportados para este mismo mes, en caso de no haber mes anterior de PILA,  reportar un error que informe de la inexistencia de información base para realizar el cálculo requerido.","Este campo lo debe calcular el LIQUIDADOR de acuerdo al artículo 70 del Decreto 806 de 1998: si la columna \"número DE DÍAS VACACIONES DISFRUTADAS EN EL MES\"  es mayor a cero (0), a partir de el \"número DOCUMENTO ACTUAL DEL COTIZANTE\"  se debe tomar el TOTAL IBC CALCULADO SALUD del mes inmediatamente anterior y dividirlo entre el TOTAL DÍAS REPORTADOS EN EL MES (anterior)  y el resultado se multiplica por los días reportados en \"número DE DÍAS VACACIONES DISFRUTADAS EN EL MES\" (actual).\n\nEn caso de no existir registro de nómina del mes anterior se acude a PILA depurada, tomando la información del IBC de salud reportado en el mes anterior dividido en los días de salud reportados para este mismo mes, en caso de no haber mes anterior de PILA,  reportar un error que informe de la inexistencia de información base para realizar el cálculo requerido.","Este campo lo debe calcular el LIQUIDADOR de acuerdo al artículo 70 del Decreto 806 de 1998: si la columna \"NÚMERO DÍAS DE HUELGA LEGALMENTE DECLARADA\"  es mayor a cero (0), a partir de el \"número DOCUMENTO ACTUAL DEL COTIZANTE\"  se debe tomar el TOTAL IBC CALCULADO SALUD del mes inmediatamente anterior y dividirlo entre el TOTAL DÍAS REPORTADOS EN EL MES (anterior)  y el resultado se multiplica por los días reportados en  \"NÚMERO DÍAS DE HUELGA LEGALMENTE DECLARADA\" (actual).\n\nEn caso de no existir registro de nómina del mes anterior se acude a PILA depurada, tomando la información del IBC de salud reportado en el mes anterior dividido en los días de salud reportados para este mismo mes, en caso de no haber mes anterior de PILA,  reportar un error que informe de la inexistencia de información base para realizar el cálculo requerido.","Es la suma de los días registrados en: \"NÚMERO DÍAS TRABAJADOS EN EL MES\"  + \"NÚMERO DÍAS INCAPACIDADES EN EL MES\"  + \"NÚMERO DÍAS LICENCIA DE MATERNIDAD O PATERNIDAD\"  + \"NÚMERO DÍAS DE PERMISO O LICENCIA  REMUNERADAS EN EL MES\"  + \"número DE DÍAS VACACIONES DISFRUTADAS EN EL MES\"  +  \"NÚMERO DÍAS DE HUELGA LEGALMENTE DECLARADA\" ","Es la suma de los días registrados en: \"NÚMERO DÍAS TRABAJADOS EN EL MES\" + \"NÚMERO DÍAS INCAPACIDADES EN EL MES\"  + \"NÚMERO DÍAS LICENCIA DE MATERNIDAD O PATERNIDAD\"  + \"NÚMERO DÍAS DE PERMISO O LICENCIA  REMUNERADAS EN EL MES\" + \"NÚMERO DÍAS DE SUSPENSIÓN, PERMISO O LICENCIA  NO REMUNERADAS EN EL MES\"  + \"número DE DÍAS VACACIONES DISFRUTADAS EN EL MES\"  + \"NÚMERO DÍAS DE HUELGA LEGALMENTE DECLARADA\"","Son los días registrados en: \"NÚMERO DÍAS TRABAJADOS EN EL MES\"","Es la suma de los días registrados en: \"NÚMERO DÍAS TRABAJADOS EN EL MES\"  + \"número DE DÍAS VACACIONES DISFRUTADAS EN EL MES\" ","Este campo es la suma de todos los conceptos de pago clasificados en TIPO DE PAGO UGPP como   \"TP NO SALARIAL\"  que cumplan con las siguientes condiciones:\n1. \"NATURALEZA JURIDICA\" = \"Privada\"\n2. \"TIPO DE APORTANTE\" sea diferente a  \"Cooperativas y Precooperativas de Trabajo Asociado\" o \"Misiones diplomáticas, consulares o de organismos multilaterales no sometidos a la legislación colombiana\" o \"Pagador de aportes de los concejales municipales o distritales\"","Es la suma de todos los pagos registrados para un trabajador en el mes, sin importar si tiene o no subsistema asociado en la nómina, siempre y cuando se cumplan con las siguientes condiciones:\n1. \"NATURALEZA JURIDICA\" = \"Privada\"\n2. \"TIPO DE APORTANTE\" sea diferente a \"Cooperativas y Precooperativas de Trabajo Asociado\" o \"Misiones diplomáticas, consulares o de organismos multilaterales no sometidos a la legislación colombiana\" o \"Pagador de aportes de los concejales municipales o distritales\"","Valor porcentual, que  corresponde a la participación que tienen los pagos no salariales que cumplan con las condiciones señaladas en la columna \"TOTAL PAGOS NO SALARIALES\",   dentro del valor \"TOTAL REMUNERADO\" \n\nEl cálculo es (TOTAL PAGOS NO SALARIALES / TOTAL REMUNERADO) * 100","Si PORCENTAJE PAGOS NO SALARIALES es mayor al porcentaje de flexibilización almacenado en el CORE se realizará el siguiente cálculo:\n\n\"TOTAL PAGOS NO SALARIALES\" - (\"TOTAL REMUNERADO\"  multiplicado X  porcentaje de flexibilización almacenado en el CORE) \n \nde lo contrario cero (0)","se debe colocar el código de la administradora de Salud o EPS registrado en el PILA DEPURADA de acuerdo a la consulta por número DOCUMENTO APORTANTE, número DOCUMENTO CON EL QUE REALIZO APORTES DEL COTIZANTE, mes y año de la fiscalización.","De acuerdo al \"código ADMINISTRADORA SALUD\" registrar el Nombre de cada Administradora, según la información registrada en la hoja \"administradoras\"","Se suma el valor de los conceptos de pago subidos en la nómina que contengan el número uno (1) en el campo \"Subsistema Asociado\", con excepción de los que contengan \"TP INCAPACIDAD\" en el campo \"TIPO DE PAGO UGPP\",  \nEn caso que la columna \"SALARIO INTEGRAL\" esté marcada con \"X\", la suma de estos valores se debe multiplicar por el 70% y este resultado no puede ser inferior a 10 salarios minimos legales vigentes o lo equivalente en días teniendo en cuenta los días \"NÚMERO DÍAS TRABAJADOS EN EL MES\"\n\nPosteriormente se suma el valor de los pagos identificados con \"TP INCAPACIDAD\" en el campo \"TIPO DE PAGO UGPP\".","De acuerdo al \"TIPO COTIZANTE\"  se debe verificar en la tabla Tipo de Cotizante Vs Subsistema de la malla de Validación emitida por el Ministerio de Salud, si el tipo de cotizante registrado está o no obligado a realizar aportes a SALUD.,\nSi el trabajador NO está obligado,  el valor será cero.\n\nSi el trabajador SI está obligado,  el cálculo es el siguiente: Se suman \"IBC PAGOS EN nómina SALUD\" +  \"cálculo IBC PERMISOS REMUNERADOS\"  +  \"cálculo IBC SUSPENSIONES O PERMISOS NO REMUNERADOS\"  +  \"cálculo IBC VACACIONES\"   +  \"cálculo IBC HUELGA\" \n\nEl total de estos valores debe estar redondeado al mil más cercano,\n\nEste valor no puede ser superior al Tope máximo IBC Salud registrado en el módulo del CORE \"Parámetros Básicos\"  de la sección \"Administrar parámetros generales 2\", aplicable al mes que se está fiscalizando teniendo en cuenta las fechas de inicio y fin de cada tope.\n\nTampoco puede ser inferior al valor del salario minimo diario multiplicado por la cantidad de los días calculados en la columna \"días_cot_salud\".\n\nEn caso que el \"TIPO COTIZANTE\" sea:  \"21\",  \"20\",  \"12\"  o  \"19\",  registrar el salario minimo legal vigente diario del año fiscalizado  multiplicado por  los  \"días_cot_salud\"\n\nAl resultado final se restara el valor registrado en la columna \"IBC EN CONCURRENCIA DE INGRESOS CON OTROS APORTANTES\"","El % debe ser la tarifa % de Salud del trabajador más +  tarifa % de Salud del empleador  registradas, en el módulo del CORE \"Asociar Subsistema\"  de la sección \"Administrar parámeros generales 2\", aplicable al año y mes que se está fiscalizando teniendo en cuenta las fechas de inicio y fin de cada tarifa.\n\nSalvo las siguientes excepciones:\n\n1- Por efectos de la Ley 1607 de 2012, si el campo “SUJETO PASIVO DEL IMPUESTO SOBRE LA RENTA PARA LA EQUIDAD CREE” está marcado con \"SÍ\", y  el periodo fiscalizado es posterior a noviembre de 2013, se aplicara la tarifa del 4%  a los trabajadores que \"devenguen\", individualmente\nconsiderados, hasta diez (10) salarios mínimos mensuales legales vigentes, de lo contrario se aplicara la tarifa la tarifa % de Salud del trabajador más +  tarifa % de Salud del empleador  registradas, en el módulo del CORE anteriormente mencionado.  Para definir el valor \"devengado\" se tendra en cuenta lo siguiente:\n\nSi el trabajador en la columna \"SALARIO INTEGRAL\" esta marcada con \"X\", a la suma de los pagos  TP SALARIAL (+)  TP NO SALARIAL MARCADO SALARIAL POR LA UGPP se multiplicara por el 70%,   en caso contrario que  la columna \"SALARIO INTEGRAL\" este vacia,  se tomara el valor total de la suma de los pagos  TP SALARIAL (+)  TP NO SALARIAL MARCADO SALARIAL POR LA UGPP.\n\n2- Si en la columna \"CONDICION ESPECIAL DE EMPRESA\"  aparece una de las siguientes condiciones, aplicar la tarifa de acuerdo a la siguiente lista:\n_______________________________________________________________________________________ \n·  “LEY 1429 Col AÑO 1,2”                            =   11%\n·  “LEY 1429 Col AÑO 3”                                =   11,38%\n·  “LEY 1429 Col AÑO 4”                                =   11,75%\n·  “LEY 1429 Col AÑO 5”                                =   12,13%\n·  “LEY 1429 AGV AÑO 1 – 8”                       =   11%\n·  “LEY 1429 AGV AÑO 9”                             =   11,75%\n·  “LEY 1429 AGV AÑO 10”                           =   12,13% ,\n·  “Soc.declaradas ZF. Art20 Ley1607”    =   12,5%\n_______________________________________________________________________________________ \n\n","Es la tarifa % de Salud del empleador  registrada, en el módulo del CORE \"Asociar Subsistema\"  de la sección \"Administrar parámeros generales 2\" aplicable al mes que se está fiscalizando teniendo en cuenta las fechas de inicio y fin de cada tarifa.\n\nSalvo las siguientes excepciones:\n\n1- Por efectos de la Ley 1607 de 2012, si el campo “SUJETO PASIVO DEL IMPUESTO SOBRE LA RENTA PARA LA EQUIDAD CREE” está marcado con \"SÍ\", y  el periodo fiscalizado es posterior a noviembre de 2013, se aplicara la tarifa del 0%  a los trabajadores que \"devenguen\", individualmente\nconsiderados, hasta diez (10) salarios mínimos mensuales legales vigentes, de lo contrario se aplicara la tarifa la tarifa % de Salud del empleador  registradas, en el módulo del CORE anteriormente mencionado.  Para definir el valor \"devengado\" se tendra en cuenta lo siguiente:\n\nSi el trabajador en la columna \"SALARIO INTEGRAL\" esta marcada con \"X\", a la suma de los pagos  TP SALARIAL (+)  TP NO SALARIAL MARCADO SALARIAL POR LA UGPP se multiplicara por el 70%,   en caso contrario que  la columna \"SALARIO INTEGRAL\" este vacia,  se tomara el valor total de la suma de los pagos  TP SALARIAL (+)  TP NO SALARIAL MARCADO SALARIAL POR LA UGPP.","Se realiza el siguiente cálculo:   ((\"IBC PAGOS EN nómina SALUD\" +  \"cálculo IBC PERMISOS REMUNERADOS\"  +   \"cálculo IBC VACACIONES\"   +  \"cálculo IBC HUELGA\") multiplicado por la tarifa registrada en la columna \"TARIFA SALUD\")  más (+)  (\"\"cálculo IBC SUSPENSIONES O PERMISOS NO REMUNERADOS\")   multiplicado por la tarifa registrada en la columna \"TARIFA SALUD PARA SUSPENSIONES)\n\n* Este resultado se redondea al 100 más cercano","Registrar los días de Salud registrado en PILA DEPURADA de acuerdo a la consulta por número DOCUMENTO APORTANTE, número DOCUMENTO CON EL QUE REALIZO APORTES DEL COTIZANTE, mes y año de la fiscalización.","Registrar el IBC de Salud  registrado en PILA DEPURADA de acuerdo a la consulta por número DOCUMENTO APORTANTE, número DOCUMENTO CON EL QUE REALIZO APORTES DEL COTIZANTE, mes y año de la fiscalización.","Registrar el valor del porcentaje o tarifa de Salud registrado en PILA DEPURADA de acuerdo a la consulta por número DOCUMENTO APORTANTE, número DOCUMENTO CON EL QUE REALIZO APORTES DEL COTIZANTE, mes y año de la fiscalización.","Registrar valor de la cotización de Salud registrado en PILA DEPURADA de acuerdo a la consulta por número DOCUMENTO APORTANTE, número DOCUMENTO CON EL QUE REALIZO APORTES DEL COTIZANTE, mes y año de la fiscalización.","Es el resultado de tomar el valor de la \"cotización OBLIGATORIA SALUD\"   menos (-)  \"cotización PAGADA PILA SALUD\" \n\nEste valor debe estar redondeado al 100 más cercano","en caso que el valor de la columna \"AJUSTE SALUD\" sea menor a mil pesos $1.000 esta campo debe star vacio, en caso contrario validar lo siguiente:\n\n* si no tiene \"código ADMINISTRADORA SALUD\"  y no tiene \"cotización PAGADA PILA SALUD\"  debe quedar  \"No registra afiliación ni pago al subsistema\"\n\n* si no tiene \"cotización PAGADA PILA SALUD\"  y   tiene \"código ADMINISTRADORA SALUD\" debe quedar \"No registra pago de aportes\"\n\n* si tiene \"cotización PAGADA PILA SALUD\" debe quedar \"Registró pago de aportes por valor inferior\"\n","en caso que el valor de la columna \"AJUSTE SALUD\" sea menor a mil pesos $1.000 esta campo debe estar vacio, en caso contrario validar lo siguiente:\n\n* si el \"CONCEPTO AJUSTE SALUD\" es igual a \"No registra afiliación ni pago al subsistema\" debe escribir  \"OMISO\"\n\n* si el \"CONCEPTO AJUSTE SALUD\"  es igual a \"No registra pago de aportes\" debe escribir  \"MORA\"\n\n* si el \"CONCEPTO AJUSTE SALUD\" es igual a \"Registró pago de aportes por valor inferior\"  debe escribir  \"INEXACTO\"","REGLAS DE COMPARACIÓN ENTRE ETAPAS DE REQUERIMIENTO, AMPLIACIÓN, LIQUIDACIÓN Y RECURSO (POR DEFINIR)","se debe colocar el código de la ultima  administradora de Pension o AFP registrado en el RUAF de acuerdo al número DOCUMENTO ACTUAL DEL COTIZANTE","De acuerdo al \"código ADMINISTRADORA PENSIÓN\"  registrar el Nombre de cada Administradora, según la información en la hoja \"administradoras\"","Se suma el valor de los conceptos de pago subidos en la nómina que contengan el número uno (2) en el campo \"Subsistema Asociado\", con excepción de los que contengan \"TP INCAPACIDAD\" en el campo \"TIPO DE PAGO UGPP\",  En caso que la columna \"SALARIO INTEGRAL\" esté marcada con \"X\",  la suma de estos valores se debe multiplicar por el 70% y este resultado no puede ser inferior a 10 salarios minimos legales vigentes o lo equivalente en días teniendo en cuenta los días \"NÚMERO DÍAS TRABAJADOS EN EL MES\"\n\nPosteriormente se suma el valor de los pagos identificados con \"TP INCAPACIDAD\" en el campo \"TIPO DE PAGO UGPP\".","De acuerdo al \"SUBTIPO COTIZANTE\"  se debe verificar en la tabla Subtipo cotizante  Vs. Aporte a PENSION de la malla de Validación, si el Subtipo de cotizante registrado esta o no obligado a realizar aportes a PENSIÓN, FSP y APORTE ADICIONAL A PENSIÓN POR ALTO RIESGO, en caso de no estar obligado,  no se realizará ningún cálculo ni validación para estos subsistemás, caso contrario de estar obligado, se realizarán  los cálculos y validaciones descritas a continuación para el subsistema de PENSIÓN, FSP y APORTE ADICIONAL A PENSIÓN POR ALTO RIESGO.\n\nDe acuerdo al \"TIPO COTIZANTE\"  se debe verificar en la tabla Tipo de Cotizante Vs Subsistema de la malla de Validación emitida por el Ministerio de Salud, si el tipo de cotizante registrado esta o no obligado a realizar aportes a PENSIÓN, FSP y APORTE ADICIONAL A PENSIÓN POR ALTO RIESGO, en caso de no estar obligado,  no se realizará ningún cálculo ni validación para estos subsistemás, caso contrario de estar obligado, se realizarán  los cálculos y validaciones descritas a continuación para el subsistema de PENSIÓN, FSP y APORTE ADICIONAL A PENSIÓN POR ALTO RIESGO.\n\nSe suman; \"IBC PAGOS EN nómina PENSIÓN\" +  \"cálculo IBC PERMISOS REMUNERADOS\"  +   \"cálculo IBC VACACIONES\"   +  \"cálculo IBC HUELGA\" \n\nEl total de estos valores debe estar redondeado al mil más cercano,\n\nEste valor no puede ser superior al Tope máximo IBC Pensión registrado en el módulo del CORE \"Parámetros Básicos\"  de la sección \"Administrar parámetros generales 2\" teniendo en cuenta las fechas de inicio y fin de cada tope, aplicable al mes que se esta fiscalizando.\n\nNi tampoco puede ser interior al valor del salario minimo diario por la cantidad de los días calculados en la columna \"días_cot_pension\",\n\nEn caso que el \"TIPO COTIZANTE\" sea:  \"20\"  el IBC CORE PENSIÓN   sera el salario minimo legal vigente diario del años fiscalizado por los   \"días_cot_pension\"\n\nAl resultado final se restara el valor registrado en la columna \"IBC EN CONCURRENCIA DE INGRESOS CON OTROS APORTANTES\"","Se debe asignar el % de la tarifa registrada para Pensión, en el módulo del CORE \"Asociar Subsistema\"  de la sección \"Administrar parámeros generales 2\" de acuerdo a la parametrización registrada teniendo en cuenta las fechas de inicio y fin de cada tarifa, aplicable al mes que se esta fiscalizando.","Al valor de la columna \"TOTAL IBC CALCULADO PENSIÓN\"  *  se multiplicara por  la tarifa registrada en la columna \"TARIFA PENSION\"\n\nEste valor se redondea al 100 más cercano","Registrar los días de Pensión registrado en PILA DEPURADA de acuerdo a la consulta por número DOCUMENTO APORTANTE, número DOCUMENTO CON EL QUE REALIZO APORTES DEL COTIZANTE, mes y año de la fiscalización.","Registrar el IBC de Pensión registrado en PILA DEPURADA de acuerdo a la consulta por número DOCUMENTO APORTANTE, número DOCUMENTO CON EL QUE REALIZO APORTES DEL COTIZANTE, mes y año de la fiscalización.","Registrar el valor del porcentaje o tarifa de Pensión registrado en PILA DEPURADA de acuerdo a la consulta por número DOCUMENTO APORTANTE, número DOCUMENTO CON EL QUE REALIZO APORTES DEL COTIZANTE, mes y año de la fiscalización.","Registrar valor de la cotización de Pensión registrado en PILA DEPURADA de acuerdo a la consulta por número DOCUMENTO APORTANTE, número DOCUMENTO CON EL QUE REALIZO APORTES DEL COTIZANTE, mes y año de la fiscalización.","Si la columna \"cálculo ACTUARIAL\" esta marcada con \"X\" se coloca cero (0), si no,\n\nEs el resultado de tomar le valor de la \"cotización OBLIGATORIA PENSIÓN\"  menos (-)  \"cotización PAGADA PILA PENSIÓN\" \n\nEste valor debe estar redondeado al 100 más cercano","en caso que el valor de la columna \"AJUSTE PENSIÓN\" sea menor a mil pesos $1.000 esta campo debe estar vacio, en caso contrario validar lo siguiente:\n\n* Si la columna \"cálculo ACTUARIAL\" esta marcada con \"X\" debe quedar  \"Valor determinado por cálculo actuarial\"\n\n* si no tiene \"código ADMINISTRADORA PENSIÓN\"  y no tiene \"cotización PAGADA PILA PENSIÓN\"  debe quedar  \"No registra afiliación ni pago al subsistema\"\n\n* si no tiene \"cotización PAGADA PILA PENSIÓN\"  y   tiene \"código ADMINISTRADORA PENSIÓN\" debe quedar  \"No registra pago de aportes\"\n\n* si tiene \"cotización PAGADA PILA PENSIÓN\" debe quedar \"Registró pago de aportes por valor inferior\"\n\n","en caso que el valor de la columna \"AJUSTE PENSIÓN\" sea menor a mil pesos $1.000 este campo debe estar vacio, en caso contrario validar lo siguiente:\n\n* si el \"CONCEPTO AJUSTE PENSIÓN\" es igual a \"No registra afiliación ni pago al subsistema\"  debe escribir  \"OMISO\"\n\n* si el \"CONCEPTO AJUSTE PENSIÓN\"  es igual a \"No registra pago de aportes\"  o  \"Valor determinado por cálculo actuarial\" debe escribir  \"MORA\"\n\n* si el \"CONCEPTO AJUSTE PENSIÓN\" es igual a \"Registró pago de aportes por valor inferior\"  debe escribir  \"INEXACTO\"","REGLAS DE COMPARACIÓN ENTRE ETAPAS DE REQUERIMIENTO, AMPLIACIÓN, LIQUIDACIÓN Y RECURSO (POR DEFINIR)","Se debe asignar el % de la tarifa registrada para TARIFA FSP Subcuenta de solidaridad, en el módulo del CORE \"Asociar Subsistema\"  de la sección \"Administrar parámeros generales 2\" de acuerdo a la parametrización registrada teniendo en cuenta las fechas de inicio y fin de cada tarifa, aplicable al mes que se esta fiscalizando.","Se debe asignar el % de la tarifa registrada para TARIFA FSP Subcuenta de Subsistencia, en el módulo del CORE \"Asociar Subsistema\"  de la sección \"Administrar parámeros generales 2\" de acuerdo a la parametrización registrada teniendo en cuenta las fechas de inicio y fin de cada tarifa, aplicable al mes que se esta fiscalizando.","Al valor de la columna \"IBC PENSIÓN\"   se multiplicara (X)  por  la tarifa registrada en la columna \"TARIFA FSP Subcuenta de solidaridad\" \n\neste valor se redondea al 100 más cercano","Al valor de la columna \"IBC PENSIÓN\"   se multiplicara (X)  por  la tarifa registrada en la columna \"TARIFA FSP Subcuenta de Subsistencia\" \n\neste valor se redondea al 100 más cercano","Registrar valor de la cotización de Fondo de Solidaridad Pensional Subcuenta de solidaridad, registrada en PILA DEPURADA de acuerdo a la consulta por número DOCUMENTO APORTANTE, número DOCUMENTO CON EL QUE REALIZO APORTES DEL COTIZANTE, mes y año de la fiscalización.","Registrar valor de la cotización de Fondo de Solidaridad Pensional Subcuenta de Subsistencia, registrada en PILA DEPURADA de acuerdo a la consulta por número DOCUMENTO APORTANTE, número DOCUMENTO CON EL QUE REALIZO APORTES DEL COTIZANTE, mes y año de la fiscalización.","Si la coluna \"cálculo ACTUARIAL\" esta marcada con \"X\" se coloca cero (0), si no,\n\nEs el resultado de tomar le valor de la \"cotización OBLIGATORIA FSP Subcuenta de solidaridad\"  menos (-)  \"cotización PAGADA PILA FSP Subcuenta de solidaridad\" \n\nEste valor debe estar redondeado al 100 más cercano","Si la coluna \"cálculo ACTUARIAL\" esta marcada con \"X\" se coloca cero (0), si no,\n\nEs el resultado de tomar le valor de la \"cotización OBLIGATORIA FSP Subcuenta de Subsistencia\"  menos (-)  \"cotización PAGADA PILA FSP Subcuenta de Subsistencia\" \n\nEste valor debe estar redondeado al 100 más cercano","En caso que la suma de \"AJUSTE FSP Subcuenta de Solidaridad\" (+)  más el \"AJUSTE FSP Subcuenta de subsistencia\" sea menor a mil pesos $1.000 esta campo debe estar vacio, en caso contrario validar lo siguiente:\n\n* si no tiene \"código ADMINISTRADORA PENSIÓN\"  y no tiene \"cotización PAGADA PILA FSP Subcuenta de Subsistencia\"  debe escribir  \"No registra afiliación ni pago al subsistema\"\n\n* si no tiene \"cotización PAGADA PILA FSP Subcuenta de Subsistencia\" ,   tiene \"código ADMINISTRADORA PENSIÓN\" y en la columna \"CONCEPTO AJUSTE PENSIÓN\" es igual a \"Registró pago de aportes por valor inferior\" o se encuentra vacia  debe escribir \"Registró pago de aportes por valor inferior\"\n\n* si no tiene \"cotización PAGADA PILA FSP Subcuenta de Subsistencia\" ,   tiene \"código ADMINISTRADORA PENSIÓN\" y en la columna \"CONCEPTO AJUSTE PENSIÓN\" es igual a \"No registra pago de aportes\"  debe escribir \"No registra pago de aportes\"\n\n* si tiene \"cotización PAGADA PILA FSP Subcuenta de Solidaridad\"debe escribir  \"Registró pago de aportes por valor inferior\"","en caso que el valor de la columna \"AJUSTE PENSIÓN\" sea menor a mil pesos $1.000 este campo debe estar vacio, en caso contrario validar lo siguiente:\n\n* si el \"CONCEPTO AJUSTE PENSIÓN\" es igual a \"No registra afiliación ni pago al subsistema\" debe escribir  \"OMISO\"\n\n* si el \"CONCEPTO AJUSTE PENSIÓN\"  es igual a \"No registra pago de aportes\" debe escribir  \"MORA\"\n\n* si el \"CONCEPTO AJUSTE PENSIÓN\" es igual a \"Registró pago de aportes por valor inferior\"  debe escribir  \"INEXACTO\"","REGLAS DE COMPARACIÓN ENTRE ETAPAS DE REQUERIMIENTO, AMPLIACIÓN, LIQUIDACIÓN Y RECURSO (POR DEFINIR)","Se debe asignar un tarifa del 10%   si en la columna  \"ACTIVIDAD ALTO RIESGO PENSION\"   esta marcada con \"X\" y si el \"código ADMINISTRADORA PENSIÓN\" en igual a  \"25-11\"  o  \"25-14\" de lo contrario la tarifa debe ser 0%","Si en la columna  \"ACTIVIDAD ALTO RIESGO PENSION\"   esta marcada con \"X\"  El valor de la columna \"IBC PENSIÓN\"   se multiplica (X) por  la tarifa registrada en la columna \"TARIFA PENSIÓN ADICIONAL ACT. ALTO RIESGO\"\n\neste valor se redondea al 100 más cercano","Registrar el valor del porcentaje o tarifa de Alto Riesgo para Pensión registrado en PILA DEPURADA de acuerdo a la consulta por número DOCUMENTO APORTANTE, número DOCUMENTO CON EL QUE REALIZO APORTES DEL COTIZANTE, mes y año de la fiscalización.","Registrar valor de la cotización de Alto Riesgo para Pensión registrado en PILA DEPURADA de acuerdo a la consulta por número DOCUMENTO APORTANTE, número DOCUMENTO CON EL QUE REALIZO APORTES DEL COTIZANTE, mes y año de la fiscalización.","Si la coluna  \"cálculo ACTUARIAL\" esta marcada con \"X\" se coloca cero (0), si no,\n\nEs el resultado de tomar le valor de la \"cotización OBLIGATORIA ADICIONAL ACT. ALTO RIESGO\"  menos (-)  \"cotización PAGADA PILA PENSIÓN ADICIONAL ACT. ALTO RIESGO\" \n\nEste valor debe estar redondeado al 100 más cercano","en caso que el valor de la columna \"AJUSTE PENSIÓN ADICIONAL ACT. ALTO RIESGO\" sea menor a mil pesos $1.000 este campo debe estar vacio, en caso contrario validar lo siguiente:\n\n* si no tiene \"código ADMINISTRADORA PENSIÓN\"  y no tiene \" \"cotización PAGADA PILA PENSIÓN ADICIONAL ACT. ALTO RIESGO\"  debe quedar  \"No registra afiliación ni pago al subsistema\"\n\n* si no tiene \"cotización PAGADA PILA PENSIÓN ADICIONAL ACT. ALTO RIESGO\"  y   tiene \"código ADMINISTRADORA PENSIÓN\" debe quedar  \"No registra pago de aportes\"\n\n* si tiene \"cotización PAGADA PILA PENSIÓN ADICIONAL ACT. ALTO RIESGO\" debe quedar \"Registró pago de aportes por valor inferior\"","en caso que el valor de la columna \"AJUSTE PENSIÓN ADICIONAL ACT. ALTO RIESGO\" sea menor a mil pesos $1.000 este campo debe estar vacio, en caso contrario validar lo siguiente:\n\n* si el \"CONCEPTO AJUSTE PENSIÓN ADICIONAL ACT. ALTO RIESGO\" es igual a \"No registra afiliación ni pago al subsistema\"  debe escribir  \"OMISO\"\n\n* si el \"CONCEPTO AJUSTE PENSIÓN ADICIONAL ACT. ALTO RIESGO\"  es igual a \"No registra pago de aportes\" debe escribir  \"MORA\"\n\n* si el \"CONCEPTO AJUSTE PENSIÓN ADICIONAL ACT. ALTO RIESGO\" es igual a \"Registró pago de aportes por valor inferior\"  debe escribir  \"INEXACTO\"","REGLAS DE COMPARACIÓN ENTRE ETAPAS DE REQUERIMIENTO, AMPLIACIÓN, LIQUIDACIÓN Y RECURSO (POR DEFINIR)","Si la coluna  \"cálculo ACTUARIAL\" esta marcada con \"X\" se registra el valor que este en la columna \"VALOR cálculo ACTUARIAL\"","se debe colocar el código de la administradora de Riesgos laborales o ARL registrado en el PILA DEPURADA de acuerdo a la consulta por número DOCUMENTO APORTANTE, número DOCUMENTO CON EL QUE REALIZO APORTES DEL COTIZANTE, mes y año de la fiscalización.","De acuerdo al \"código ADMINISTRADORA ARL\" registrar el Nombre de cada Administradora, por favor consultar la información en la hoja \"administradoras\"","De acuerdo al \"TIPO COTIZANTE\"  se debe verificar en la tabla Tipo de Cotizante Vs Subsistema de la malla de Validación emitida por el Ministerio de Salud, si el tipo de cotizante registrado esta o no obligado a realizar aportes a ARL, en caso de no estar obligado,  no se realizará ningún cálculo ni validación para este subsistema, pero en caso de estar obligado, se realizarán  los cálculos y validaciones descritas a continuación para el subsistema de ARL.\n\nSe suma el valor de los conceptos de pago subidos en la nómina que contengan el número cuatro (4) en el campo \"Subsistema Asociado\", En caso que la columna \"SALARIO INTEGRAL\" este marcada con \"X\" la suma de estos valores se multiplicar por el 70% y este resultado no puede ser inferior a 10 salarios minimos legales vigentes o lo equivalente en días teniendo en cuenta los días calculados en la columna \"días_cot_rprof\" \n\nEl Gran total de estos valores debe estar redondeado al mil más cercano,\n\nEste valor no puede ser superior al Tope máximo IBC ARL registrado en el módulo del CORE \"Parámetros Básicos\"  de la sección \"Administrar parámetros generales 2\" teniendo en cuenta las fechas de inicio y fin de cada tope, aplicable al mes que se esta fiscalizando.\n\nNi tampoco puede ser interior al valor del salario minimo diario por la cantidad de los días calculados en la columna \"días_cot_rprof\" \n\nen caso que los día calculados en la columna \"días_cot_rprof\"  sea  cero (0) no se debera calcular \"IBC ARL\",\n\nEn caso que el \"TIPO COTIZANTE\" sea:  \"21\",  \"20\"  o  \"19\"  el IBC ARL   sera el salario minimo legal vigente diario del años fiscalizado por los  \"días_cot_rprof\" \n\nAl resultado final se restara el valor registrado en la columna \"IBC EN CONCURRENCIA DE INGRESOS CON OTROS APORTANTES\"","se debe colocar el valor del porcentaje o tarifa de Riesgos Laborales registrado en el PILA DEPURADA de acuerdo a la consulta por número DOCUMENTO APORTANTE, número DOCUMENTO CON EL QUE REALIZO APORTES DEL COTIZANTE, mes y año de la fiscalización.","Del valor que contenga la columna \"IBC ARL\"  se multiplicara (X) por  la tarifa registrada en la columna \"TARIFA ARL\",\n\neste valor se redondea al 100 más cercano","se debe colocar los días de Riesgos Laborales o ARL registrado en el PILA DEPURADA de acuerdo a la consulta por número DOCUMENTO APORTANTE, número DOCUMENTO CON EL QUE REALIZO APORTES DEL COTIZANTE, mes y año de la fiscalización.","se debe colocar el IBC de Riesgos Laborales o ARL  registrado en el PILA DEPURADA de acuerdo a la consulta por número DOCUMENTO APORTANTE, número DOCUMENTO CON EL QUE REALIZO APORTES DEL COTIZANTE, mes y año de la fiscalización.","se debe colocar el valor del porcentaje o tarifa de Riesgos Laborales o ARL registrado en el PILA DEPURADA de acuerdo a la consulta por número DOCUMENTO APORTANTE, número DOCUMENTO CON EL QUE REALIZO APORTES DEL COTIZANTE, mes y año de la fiscalización.","se debe colocar valor de la cotización de Riesgos Laborales o ARL registrado en el PILA DEPURADA de acuerdo a la consulta por número DOCUMENTO APORTANTE, número DOCUMENTO CON EL QUE REALIZO APORTES DEL COTIZANTE, mes y año de la fiscalización.","Es el resultado de tomar le valor de la \"cotización OBLIGATORIA ARL\"   menos (-)  \"cotización PAGADA PILA ARL\" \n\nEste valor debe estar redondeado al 100 más cercano","en caso que el valor de la columna \"AJUSTE ARL\" sea menor a mil pesos $1.000 esta campo debe star vacio, en caso contrario validar lo siguiente:\n\n* si no tiene \"código ADMINISTRADORA ARL\"  y no tiene \"cotización PAGADA PILA ARL\"  debe quedar  \"No registra afiliación ni pago al subsistema\"\n\n* si no tiene \"cotización PAGADA PILA ARL\"  y   tiene \"código ADMINISTRADORA ARL\" debe quedar \"No registra pago de aportes\"\n\n* si tiene \"cotización PAGADA PILA ARL\" debe quedar \"Registró pago de aportes por valor inferior\"\n","en caso que el valor de la columna \"AJUSTE ARL\" sea menor a mil pesos $1.000 esta campo debe estar vacio, en caso contrario validar lo siguiente:\n\n* si el \"CONCEPTO AJUSTE ARL\" es igual a \"No registra afiliación ni pago al subsistema\" debe escribir  \"OMISO\"\n\n* si el \"CONCEPTO AJUSTE ARL\"  es igual a \"No registra pago de aportes\" debe escribir  \"MORA\"\n\n* si el \"CONCEPTO AJUSTE ARL\" es igual a \"Registró pago de aportes por valor inferior\"  debe escribir  \"INEXACTO\"","REGLAS DE COMPARACIÓN ENTRE ETAPAS DE REQUERIMIENTO, AMPLIACIÓN, LIQUIDACIÓN Y RECURSO (POR DEFINIR)","se debe colocar el código de la administradora de la CAJA DE COMPENSACION FAMILIAR O CCF registrado en el PILA DEPURADA de acuerdo a la consulta por número DOCUMENTO APORTANTE, número DOCUMENTO CON EL QUE REALIZO APORTES DEL COTIZANTE, mes y año de la fiscalización.","De acuerdo al \"código ADMINISTRADORA CCF\" registrar el Nombre de cada Administradora, por favor consultar la información en la hoja \"administradoras\"","De acuerdo al \"TIPO COTIZANTE\"  se debe verificar en la tabla Tipo de Cotizante Vs Subsistema de la malla de Validación emitida por el Ministerio de Salud, si el tipo de cotizante registrado esta o no obligado a realizar aportes a CCF, en caso de no estar obligado,  no se realizará ningún cálculo ni validación para este subsistema, pero en caso de estar obligado, se realizarán  los cálculos y validaciones descritas a continuación para el subsistema de CCF.\n\nSe suma el valor de los conceptos de pago subidos en la nómina que contengan el número cuatro (4) en el campo \"Subsistema Asociado\", con excepción del \"TP VACACIONES\" y \"TP VACACIONES TERMINACION DE CONTRATO\" En caso que la columna \"SALARIO INTEGRAL\" este marcada con \"X\" la suma de estos valores se multiplicar por el 70% y este resultado no puede ser inferior a 10 salarios minimos legales vigentes o lo equivalente en días teniendo en cuenta los días \"NÚMERO DÍAS TRABAJADOS EN EL MES\".\n\nPosteriormente se suma el valor de \"TP VACACIONES\" y \"TP VACACIONES TERMINACION DE CONTRATO\"  el cual se multiplicara por 70% en caso que la columna \"SALARIO INTEGRAL\" este marcada con \"X\"\n\nEl Gran total de estos valores debe estar redondeado al mil más cercano,\n","Se debe asignar el % de la tarifa registrada para CAJA DE COMPENSACION FAMILIAR O CCF, en el módulo del CORE \"Asociar Subsistema\"  de la sección \"Administrar parámeros generales 2\" de acuerdo a la parametrización registrada teniendo en cuenta las fechas de inicio y fin de cada tarifa, aplicable al mes que se esta fiscalizando.","Del valor que contenga la columna \"IBC CCF\"  se multiplicara  (X)  por  la tarifa registrada en la columna \"TARIFA CCF\" \n\neste valor se redondea al 100 más cercano","Se debe colocar los días de CAJA DE COMPENSACION FAMILIAR O CCF registrado en el PILA DEPURADA de acuerdo a la consulta por número DOCUMENTO APORTANTE, número DOCUMENTO CON EL QUE REALIZO APORTES DEL COTIZANTE, mes y año de la fiscalización.","se debe colocar el IBC de CAJA DE COMPENSACION FAMILIAR O CCF  registrado en el PILA DEPURADA de acuerdo a la consulta por número DOCUMENTO APORTANTE, número DOCUMENTO CON EL QUE REALIZO APORTES DEL COTIZANTE, mes y año de la fiscalización.","se debe colocar el valor del porcentaje o tarifa de CAJA DE COMPENSACION FAMILIAR O CCF registrado en el PILA DEPURADA de acuerdo a la consulta por número DOCUMENTO APORTANTE, número DOCUMENTO CON EL QUE REALIZO APORTES DEL COTIZANTE, mes y año de la fiscalización.","se debe colocar valor de la cotización de CAJA DE COMPENSACION FAMILIAR O CCF registrado en el PILA DEPURADA de acuerdo a la consulta por número DOCUMENTO APORTANTE, número DOCUMENTO CON EL QUE REALIZO APORTES DEL COTIZANTE, mes y año de la fiscalización.","Es el resultado de tomar le valor de la \"cotización OBLIGATORIA CCF\"   menos (-)  \"cotización PAGADA PILA CCF\" \n\nEste valor debe estar redondeado al 100 más cercano","en caso que el valor de la columna \"AJUSTE CCF\" sea menor a mil pesos $1.000 esta campo debe star vacio, en caso contrario validar lo siguiente:\n\n* si no tiene \"código ADMINISTRADORA CCF\"  y no tiene \"cotización PAGADA PILA CCF\"  debe quedar  \"No registra afiliación ni pago al subsistema\"\n\n* si no tiene \"cotización PAGADA PILA CCF\"  y   tiene \"código ADMINISTRADORA CCF\" debe quedar \"No registra pago de aportes\"\n\n* si tiene \"cotización PAGADA PILA CCF\" debe quedar \"Registró pago de aportes por valor inferior\"\n","en caso que el valor de la columna \"AJUSTE CCF\" sea menor a mil pesos $1.000 esta campo debe estar vacio, en caso contrario validar lo siguiente:\n\n* si el \"CONCEPTO AJUSTE CCF\" es igual a \"No registra afiliación ni pago al subsistema\" debe escribir  \"OMISO\"\n\n* si el \"CONCEPTO AJUSTE CCF\"  es igual a \"No registra pago de aportes\" debe escribir  \"MORA\"\n\n* si el \"CONCEPTO AJUSTE CCF\" es igual a \"Registró pago de aportes por valor inferior\"  debe escribir  \"INEXACTO\"","REGLAS DE COMPARACIÓN ENTRE ETAPAS DE REQUERIMIENTO, AMPLIACIÓN, LIQUIDACIÓN Y RECURSO (POR DEFINIR)","De acuerdo al \"TIPO COTIZANTE\"  se debe verificar en la tabla Tipo de Cotizante Vs Subsistema de la malla de Validación emitida por el Ministerio de Salud, si el tipo de cotizante registrado está o no obligado a realizar aportes a SENA, en caso de no estar obligado, no se realizará ningún cálculo ni validación para este subsistema, pero en caso de estar obligado, se realizarán  los cálculos y validaciones descritas a continuación para el subsistema de SENA.\n\nEn terminos generales el IBC SENA  es igual al IBC CCF, por tal razon se registra el mismo valor del IBC CCF, salvo la siguiente excepcion:\n\n* Por efectos de la Ley 1607 de 2012, si el campo “SUJETO PASIVO DEL IMPUESTO SOBRE LA RENTA PARA LA EQUIDAD CREE” está marcado con \"SÍ\", y  el periodo fiscalizado es posterior a abril de 2013, el IBC sera igual a cero (0) para los trabajadores que \"devenguen\", individualmente considerados, hasta diez (10) salarios mínimos mensuales legales vigentes,  Para definir el valor \"devengado\" se tendra en cuenta lo siguiente:\n\nSi el trabajador en la columna \"SALARIO INTEGRAL\" esta marcada con \"X\", a la suma de los pagos  TP SALARIAL (+)  TP NO SALARIAL MARCADO SALARIAL POR LA UGPP se multiplicara por el 70%,   en caso contrario que  la columna \"SALARIO INTEGRAL\" este vacia,  se tomara el valor total de la suma de los pagos  TP SALARIAL (+)  TP NO SALARIAL MARCADO SALARIAL POR LA UGPP.\n\nEl Gran total de estos valores debe estar redondeado al mil más cercano.","se debe asignar el % de la tarifa registrada para SENA, en el módulo del CORE \"Asociar Subsistema\"  de la sección \"Administrar parámeros generales 2\" de acuerdo a la parametrización registrada teniendo en cuenta las fechas de inicio y fin de cada tarifa, aplicable al mes que se esta fiscalizando.\n\nsalvo las siguientes excepciones:\n\n1. Si se trata de una empresa publica y en la columna \"APORTA ESAP Y MEN\"  esta marcada con \"X\" el porcentaje del SENA  debe ser del 0,5%\n\n2. Si se trata de una empresa privadas: de acuerdo a lo registrado en la columna \"CONDICION ESPECIAL DE EMPRESA\"  y aplicar la tarifa de acuerdo a la siguiente lista:\n_______________________________________________________________________________________ \n·  “LEY 590/2000 AÑO 1”                              =   0,5%\n·  “LEY 590/2000 AÑO 2”                              =   1%\n·  “LEY 590/2000 AÑO 3”                              =   1,5%\n·  “LEY 1429 Col AÑO 1,2”                            =   0%\n·  “LEY 1429 Col AÑO 3”                                =   0,5%\n·  “LEY 1429 Col AÑO 4”                                =   1%\n·  “LEY 1429 Col AÑO 5”                                =   1,5%\n·  “LEY 1429 AGV AÑO 1 – 8”                       =   0%\n·  “LEY 1429 AGV AÑO 9”                              =   1%\n·  “LEY 1429 AGV AÑO 10”                            =   1,5%\n·  “Soc.declaradas ZF. Art20 Ley1607”    =   2%\n·  “Excepción SENA Art.181,Ley 223/95” =   0%\n_______________________________________________________________________________________ \n","Del valor que contenga la columna \"IBC SENA\"  *  se multiplicara por  la tarifa registrada en la columna \"TARIFA SENA\",\n\neste valor se redondea al 100 más cercano","se debe colocar el valor del porcentaje o tarifa de SENA registrado en el PILA DEPURADA de acuerdo a la consulta por número DOCUMENTO APORTANTE, número DOCUMENTO CON EL QUE REALIZO APORTES DEL COTIZANTE, mes y año de la fiscalización.","se debe colocar valor de la cotización de SENA registrado en el PILA DEPURADA de acuerdo a la consulta por número DOCUMENTO APORTANTE, número DOCUMENTO CON EL QUE REALIZO APORTES DEL COTIZANTE, mes y año de la fiscalización.","Es el resultado de tomar le valor de la \"cotización OBLIGATORIA SENA\"  menos (-)  \"cotización PAGADA PILA SENA\" \n\nEste valor debe estar redondeado al 100 más cercano","en caso que el valor de la columna \"AJUSTE SENA\" sea menor a mil pesos $1.000 esta campo debe estar vacio, en caso contrario validar lo siguiente:\n\n* si no tiene \"código ADMINISTRADORA SENA\"  y no tiene \"cotización PAGADA PILA SENA\"  debe quedar  \"No registra afiliación ni pago al subsistema\"\n\n* si no tiene \"cotización PAGADA PILA SENA\"  y   tiene \"código ADMINISTRADORA SENA\" debe quedar \"No registra pago de aportes\"\n\n* si tiene \"cotización PAGADA PILA SENA\" debe quedar \"Registró pago de aportes por valor inferior\"\n","en caso que el valor de la columna \"AJUSTE SENA\" sea menor a mil pesos $1.000 esta campo debe estar vacio, en caso contrario validar lo siguiente:\n\n* si el \"CONCEPTO AJUSTE SENA\" es igual a \"No registra afiliación ni pago al subsistema\" debe escribir  \"OMISO\"\n\n* si el \"CONCEPTO AJUSTE SENA\"  es igual a \"No registra pago de aportes\" debe escribir  \"MORA\"\n\n* si el \"CONCEPTO AJUSTE SENA\" es igual a \"Registró pago de aportes por valor inferior\"  debe escribir  \"INEXACTO\"","REGLAS DE COMPARACIÓN ENTRE ETAPAS DE REQUERIMIENTO, AMPLIACIÓN, LIQUIDACIÓN Y RECURSO (POR DEFINIR)","De acuerdo al \"TIPO COTIZANTE\"  se debe verificar en la tabla Tipo de Cotizante Vs Subsistema de la malla de Validación emitida por el Ministerio de Salud, si el tipo de cotizante registrado está o no obligado a realizar aportes a ICBF, en caso de no estar obligado, no se realizará ningún cálculo ni validación para este subsistema, pero en caso de estar obligado, se realizarán  los cálculos y validaciones descritas a continuación para el subsistema de ICBF.\n\nEn terminos generales el IBC ICBF  es igual al IBC CCF, por tal razon se registra el mismo valor del IBC CCF, salvo la siguiente excepcion:\n\n* Por efectos de la Ley 1607 de 2012, si el campo “SUJETO PASIVO DEL IMPUESTO SOBRE LA RENTA PARA LA EQUIDAD CREE” está marcado con \"SÍ\", y  el periodo fiscalizado es posterior a abril de 2013, el IBC sera igual a cero (0) para los trabajadores que \"devenguen\", individualmente considerados, hasta diez (10) salarios mínimos mensuales legales vigentes,  Para definir el valor \"devengado\" se tendra en cuenta lo siguiente:\n\nSi el trabajador en la columna \"SALARIO INTEGRAL\" esta marcada con \"X\", a la suma de los pagos  TP SALARIAL (+)  TP NO SALARIAL MARCADO SALARIAL POR LA UGPP se multiplicara por el 70%,   en caso contrario que  la columna \"SALARIO INTEGRAL\" este vacia,  se tomara el valor total de la suma de los pagos  TP SALARIAL (+)  TP NO SALARIAL MARCADO SALARIAL POR LA UGPP.\n\nEl Gran total de estos valores debe estar redondeado al mil más cercano.","Se debe asignar el % de la tarifa registrada para ICBF, en el módulo del CORE \"Asociar Subsistema\"  de la sección \"Administrar parámeros generales 2\" de acuerdo a la parametrización registrada teniendo en cuenta las fechas de inicio y fin de cada tarifa, aplicable al mes que se esta fiscalizando.\n\nsalvo las siguientes excepciones:\n1- Si en la columna \"CONDICION ESPECIAL DE EMPRESA\"  aparece una de las siguientes condiciones aplicar la tarifa de acuerdo a la siguiente lista:\n_______________________________________________________________________________________ \n·  “LEY 590/2000 AÑO 1”                              =   0,75%\n·  “LEY 590/2000 AÑO 2”                              =   1,5%\n·  “LEY 590/2000 AÑO 3”                              =   2,25%\n·  “LEY 1429 Col AÑO 1,2”                            =   0%\n·  “LEY 1429 Col AÑO 3”                                =   0,75%\n·  “LEY 1429 Col AÑO 4”                                =   1,5%\n·  “LEY 1429 Col AÑO 5”                                =   2,25%\n·  “LEY 1429 AGV AÑO 1 – 8”                       =   0%\n·  “LEY 1429 AGV AÑO 9”                              =   1,5%\n·  “LEY 1429 AGV AÑO 10”                            =   2,25% ,\n·  “Soc.declaradas ZF. Art20 Ley1607”    =   3%\n·  “Conv.Sub.Fam.Art.17Ley 344/96”      =   0%\n_______________________________________________________________________________________ \n","Del valor que contenga la columna \"IBC ICBF\" *  se multiplicara por  la tarifa registrada en la columna \"TARIFA ICBF\",\n\neste valor se redondea al 100 más cercano","se debe colocar el valor del porcentaje o tarifa de ICBF registrado en el  PILA DEPURADA de acuerdo a la consulta por número DOCUMENTO APORTANTE, número DOCUMENTO CON EL QUE REALIZO APORTES DEL COTIZANTE, mes y año de la fiscalización.","se debe colocar valor de la cotización de ICBF registrado en el  PILA DEPURADA de acuerdo a la consulta por número DOCUMENTO APORTANTE, número DOCUMENTO CON EL QUE REALIZO APORTES DEL COTIZANTE, mes y año de la fiscalización.","Es el resultado de tomar le valor de la \"cotización OBLIGATORIA ICBF\"  menos (-)  \"cotización PAGADA PILA ICBF\"\n\nEste valor debe estar redondeado al 100 más cercano","en caso que el valor de la columna \"AJUSTE ICBF\" sea menor a mil pesos $1.000 esta campo debe estar vacio, en caso contrario validar lo siguiente:\n\n* si no tiene \"código ADMINISTRADORA ICBF\"  y no tiene \"cotización PAGADA PILA ICBF\"  debe quedar  \"No registra afiliación ni pago al subsistema\"\n\n* si no tiene \"cotización PAGADA PILA ICBF\"  y   tiene \"código ADMINISTRADORA ICBF\" debe quedar \"No registra pago de aportes\"\n\n* si tiene \"cotización PAGADA PILA ICBF\" debe quedar \"Registró pago de aportes por valor inferior\"\n","en caso que el valor de la columna \"AJUSTE ICBF\" sea menor a mil pesos $1.000 esta campo debe estar vacio, en caso contrario validar lo siguiente:\n\n* si el \"CONCEPTO AJUSTE ICBF\" es igual a \"No registra afiliación ni pago al subsistema\" debe escribir  \"OMISO\"\n\n* si el \"CONCEPTO AJUSTE ICBF\"  es igual a \"No registra pago de aportes\" debe escribir  \"MORA\"\n\n* si el \"CONCEPTO AJUSTE ICBF\" es igual a \"Registró pago de aportes por valor inferior\"  debe escribir  \"INEXACTO\"","REGLAS DE COMPARACIÓN ENTRE ETAPAS DE REQUERIMIENTO, AMPLIACIÓN, LIQUIDACIÓN Y RECURSO (POR DEFINIR)","Registrar el dato de la columna \"PLANILLA\" registrada en el archivo PILA DEPURADA que se tuvieron en cuenta de acuerdo al número DOCUMENTO APORTANTE, número DOCUMENTO CON EL QUE REALIZO APORTES DEL COTIZANTE, mes y año de la fiscalización."]
[null,null,null,null,null,null,null,null,null,null,null,null,null,null,null,null,null,null,null,null,null,null,null,null,null,null,null,null,null,null,null,null,null,null,null,null,null,null,null,null,null,null,null,null,null,null,null,null,null,null,null,null,null,null,null,null,null,null,null,null,null,null,null,null,null,null,null,null,null,null,null,null,null,null,null,null,null,null,null,555555]

{"sheet":"Tipo y subtipo cotizantes","index":3,"n_rows":192,"n_cols":13,"rows_kept":192,"cut":false,"hidden":true,"merged":[[38,0,39,0],[38,1,39,1],[38,2,38,11],[2,0,2,9],[3,0,4,0],[3,1,4,1],[3,2,3,9],[37,0,37,11],[130,0,130,1],[162,0,162,1],[175,0,175,1],[184,0,184,1],[72,0,72,12],[73,0,74,0],[73,1,74,1],[73,2,73,12],[107,0,107,2],[121,0,121,1]]}
[]
[]
["Tabla 17. R10- Regla de validación – Tipo de Cotizante  Vs Subsistema al que aporta"]
["TIPO COTIZANTE","CODIGO","SUBSISTEMA"]
[null,null,"SALUD","PENSION","ALTO RIESGO","FSP","ARP","CCF","ICBF","SENA"]
["DEPENDIENTE",1,"X","X","X","X","X","X","X","X",null,null,{"$f":"B6&\". \"&A6","v":"1. DEPENDIENTE"}]
["SERVICIO DOMESTICO",2,"X","X","X","X","X","X",null,null,null,null,{"$f":"B7&\". \"&A7","v":"2. SERVICIO DOMESTICO"}]
["INDEPENDIENTE",3,"X","X","X","X",null,null,null,null,null,null,"3. INDEPENDIENTE"]
["MADRE COMUNITARIA",4,"X",null,null,null,null,null,null,null,null,null,"4. MADRE COMUNITARIA"]
["APRENDICES DEL SENA EN ETAPA LECTIVA",12,"X",null,null,null,null,null,null,null,null,null,"12. APRENDICES DEL SENA EN ETAPA LECTIVA"]
["DESEMPLEADO CON SUBSIDIO DE CAJA DE COMPENSACION FAMILIAR",15,"X",null,null,null,null,null,null,null,null,null,"15. DESEMPLEADO CON SUBSIDIO DE CAJA DE COMPENSACION FAMILIAR"]
["INDEPENDIENTE AGREMIADO O ASOCIADO",16,"X","X","X","X",null,null,null,null,null,null,"16. INDEPENDIENTE AGREMIADO O ASOCIADO"]
["FUNCIONARIOS PUBLICOS SIN TOPE MAXIMO DE IBC",18,"X","X","X","X","X","X","X","X",null,null,"18. FUNCIONARIOS PUBLICOS SIN TOPE MAXIMO DE IBC"]
["APRENDICES DEL SENA EN ETAPA PRODUCTIVA",19,"X",null,null,null,"X",null,null,null,null,null,"19. APRENDICES DEL SENA EN ETAPA PRODUCTIVA"]
["ESTUDIANTES (REGIMEN ESPECIAL LEY 789 DE 2002)",20,"X","X","X","X","X",null,null,null,null,null,"20. ESTUDIANTES (REGIMEN ESPECIAL LEY 789 DE 2002)"]
["ESTUDIANTES DE POSTGRADO EN SALUD",21,"X",null,null,null,"X",null,null,null,null,null,"21. ESTUDIANTES DE POSTGRADO EN SALUD"]
["PROFESOR DE ESTABLECIMIENTO PARTICULAR",22,"X","X","X","X","X","X","X","X",null,null,"22. PROFESOR DE ESTABLECIMIENTO PARTICULAR"]
["DEPENDIENTE ENTIDADES O UNIVERSIDADES PUBLICAS CON REGIMEN ESPECIAL EN SALUD",30,"X","X","X","X","X","X","X","X",null,null,"30. DEPENDIENTE ENTIDADES O UNIVERSIDADES PUBLICAS CON REGIMEN ESPECIAL EN SALUD"]
["COOPERADOS O PRECOOPERATIVAS DE TRABAJO ASOCIADO",31,"X","X","X","X","X","X","X","X",null,null,"31. COOPERADOS O PRECOOPERATIVAS DE TRABAJO ASOCIADO"]
["COTIZANTE MIEMBRO DE LA CARRERA DIPLOMATICA O CONSULAR DE UN PAIS EXTRANJERO O FUNCIONARIO DE ORGANISMO MULTILATERAL",32,null,null,null,null,null,null,null,null,null,null,"32. COTIZANTE MIEMBRO DE LA CARRERA DIPLOMATICA O CONSULAR DE UN PAIS EXTRANJERO O FUNCIONARIO DE ORGANISMO MULTILATERAL"]
["BENEFICIARIO DEL FONDO DE SOLIDARIDAD PENSIONAL",33,"X","X","X","X",null,null,null,null,null,null,"33. BENEFICIARIO DEL FONDO DE SOLIDARIDAD PENSIONAL"]
["CONCEJAL MUNICIPAL O DISTRITAL O EDIL DE JUNTA ADMINISTRATIVA LOCAL QUE PERCIBE HONORARIOS AMPARADO POR POLIZA DE SALUD",34,null,"X","X","X",null,null,null,null,null,null,"34. CONCEJAL MUNICIPAL O DISTRITAL O EDIL DE JUNTA ADMINISTRATIVA LOCAL QUE PERCIBE HONORARIOS AMPARADO POR POLIZA DE SALUD"]
["CONCEJAL MUNICIPAL O DISTRITAL QUE PERCIBE HONORARIOS NO AMPARADO CON PÓLIZA DE SALUD",35,"X","X","X","X","X",null,null,null,null,null,"35. CONCEJAL MUNICIPAL O DISTRITAL QUE PERCIBE HONORARIOS NO AMPARADO CON PÓLIZA DE SALUD"]
["CONCEJAL MUNICIPAL O DISTRITAL QUE PERCIBE HONORARIOS NO AMPARADO CON PÓLIZA DE SALUD BENEFICIARIO DEL FONDO DE SOLIDARIDAD PENSIONAL.",36,"X","X","X","X","X",null,null,null,null,null,"36. CONCEJAL MUNICIPAL O DISTRITAL QUE PERCIBE HONORARIOS NO AMPARADO CON PÓLIZA DE SALUD BENEFICIARIO DEL FONDO DE SOLIDARIDAD PENSIONAL."]
["BENEFICIARIO UPC ADICIONAL",40,"X",null,null,null,null,null,null,null,null,null,"40. BENEFICIARIO UPC ADICIONAL"]
["BENEFICIARIO SIN INGRESOS CON PAGO POR TERCERO",41,"X",null,null,null,null,null,null,null,null,null,"41. BENEFICIARIO SIN INGRESOS CON PAGO POR TERCERO"]
["COTIZANTE PAGO SOLO SALUD ARTICULO 2 LEY 1250 DE 2008 (INDEPENDIENTES DE BAJOS INGRESOS)",42,"X",null,null,null,null,null,null,null,null,null,"42. COTIZANTE PAGO SOLO SALUD ARTICULO 2 LEY 1250 DE 2008 (INDEPENDIENTES DE BAJOS INGRESOS)"]
["COTIZANTE VOLUNTARIO A PENSIONES CON PAGO POR TERCERO",43,"X","X","X","X",null,null,null,null,null,null,"43. COTIZANTE VOLUNTARIO A PENSIONES CON PAGO POR TERCERO"]
["COTIZANTE DEPENDIENTE DE EMPLEO DE EMERGENCIA CON DURACION MAYOR O IGUAL A UN MES",44,"X","X","X","X","X",null,null,null,null,null,"44. COTIZANTE DEPENDIENTE DE EMPLEO DE EMERGENCIA CON DURACION MAYOR O IGUAL A UN MES"]
["COTIZANTE DEPENDIENTE DE EMPLEO DE EMERGENCIA CON DURACION MENOR A UN MES",45,"X",null,null,null,"X",null,null,null,null,null,"45. COTIZANTE DEPENDIENTE DE EMPLEO DE EMERGENCIA CON DURACION MENOR A UN MES"]
["TRABAJADOR DEPENDIENTE DE ENTIDAD BENEFICIARIA DEL SISTEMA GENERAL DE PARTICIPACIONES - APORTES PATRONALES",47,"X","X","X","X",null,null,null,null,null,null,"47. TRABAJADOR DEPENDIENTE DE ENTIDAD BENEFICIARIA DEL SISTEMA GENERAL DE PARTICIPACIONES - APORTES PATRONALES"]
["TRABAJADOR DE TIEMPO PARCIAL DECRETO 2616 DE 2013 AFILIADO AL RÉGIMEN SUBSIDIADO EN SALUD",51,null,"X","X","X","X","X",null,null,null,null,"51. TRABAJADOR DE TIEMPO PARCIAL DECRETO 2616 DE 2013 AFILIADO AL RÉGIMEN SUBSIDIADO EN SALUD"]
["BENEFICIARIO DEL MECANISMO DE PROTECCIÓN AL CESANTE",52,"X","X","X","X",null,null,null,null,null,null,"52. BENEFICIARIO DEL MECANISMO DE PROTECCIÓN AL CESANTE"]
["AFILIADO PARTICIPE",53,"X","X","X","X","X",null,null,null,null,null,"53. AFILIADO PARTICIPE"]
["PREPENSIONADO DE ENTIDAD EN LIQUIDACIÓN.",54,null,"X","X","X",null,null,null,null,null,null,"54. PREPENSIONADO DE ENTIDAD EN LIQUIDACIÓN."]
[]
[]
["Tabla 14. R07- Regla de validación – Tipo de Cotizante  Vs Subtipo de Cotizante"]
["TIPO COTIZANTE","CODIGO","Subtipos de cotizantes"]
[null,null,1,2,3,4,5,6,9,10,11,12]
["DEPENDIENTE",1,"X",null,"X","X","X","X","X",null,"X","X"]
["SERVICIO DOMESTICO",2,"X",null,"X","X","X"]
["INDEPENDIENTE",3,null,"X","X","X","X","X","X","X","X","X"]
["MADRE COMUNITARIA",4]
["APRENDICES DEL SENA EN ETAPA LECTIVA",12]
["DESEMPLEADO CON SUBSIDIO DE CAJA DE COMPENSACION FAMILIAR",15]
["INDEPENDIENTE AGREMIADO O ASOCIADO",16,null,"X","X","X","X",null,"X","X","X"]
["FUNCIONARIOS PUBLICOS SIN TOPE MAXIMO DE IBC",18,"X",null,"X","X","X","X","X"]
["APRENDICES DEL SENA EN ETAPA PRODUCTIVA",19]
["ESTUDIANTES (REGIMEN ESPECIAL LEY 789 DE 2002)",20]
["ESTUDIANTES DE POSTGRADO EN SALUD",21]
["PROFESOR DE ESTABLECIMIENTO PARTICULAR",22,"X",null,"X","X","X","X","X"]
["DEPENDIENTE ENTIDADES O UNIVERSIDADES PUBLICAS CON REGIMEN ESPECIAL EN SALUD",30,"X",null,"X","X","X","X","X"]
["COOPERADOS O PRECOOPERATIVAS DE TRABAJO ASOCIADO",31,"X",null,"X","X","X"]
["COTIZANTE MIEMBRO DE LA CARRERA DIPLOMATICA O CONSULAR DE UN PAIS EXTRANJERO O FUNCIONARIO DE ORGANISMO MULTILATERAL",32,"X",null,"X","X","X","X","X"]
["BENEFICIARIO DEL FONDO DE SOLIDARIDAD PENSIONAL",33]
["CONCEJAL MUNICIPAL O DISTRITAL O EDIL DE JUNTA ADMINISTRATIVA LOCAL QUE PERCIBE HONORARIOS AMPARADO POR POLIZA DE SALUD",34,null,"X","X","X","X","X"]
["CONCEJAL MUNICIPAL O DISTRITAL QUE PERCIBE HONORARIOS NO AMPARADO CON PÓLIZA DE SALUD",35,null,"X","X","X","X","X"]
["CONCEJAL MUNICIPAL O DISTRITAL QUE PERCIBE HONORARIOS NO AMPARADO CON PÓLIZA DE SALUD BENEFICIARIO DEL FONDO DE SOLIDARIDAD PENSIONAL.",36]
["BENEFICIARIO UPC ADICIONAL",40]
["BENEFICIARIO SIN INGRESOS CON PAGO POR TERCERO",41]
["COTIZANTE PAGO SOLO SALUD ARTICULO 2 LEY 1250 DE 2008 (INDEPENDIENTES DE BAJOS INGRESOS)",42]
["COTIZANTE VOLUNTARIO A PENSIONES CON PAGO POR TERCERO",43]
["COTIZANTE DEPENDIENTE DE EMPLEO DE EMERGENCIA CON DURACION MAYOR O IGUAL A UN MES",44,"X",null,"X","X","X"]
["COTIZANTE DEPENDIENTE DE EMPLEO DE EMERGENCIA CON DURACION MENOR A UN MES",45]
["TRABAJADOR DEPENDIENTE DE ENTIDAD BENEFICIARIA DEL SISTEMA GENERAL DE PARTICIPACIONES - APORTES PATRONALES",47,"X",null,"X","X","X","X","X"]
["TRABAJADOR DE TIEMPO PARCIAL DECRETO 2616 DE 2013 AFILIADO AL RÉGIMEN SUBSIDIADO EN SALUD",51,"X",null,"X","X","X","X","X"]
["BENEFICIARIO DEL MECANISMO DE PROTECCIÓN AL CESANTE",52,null,"X","X","X","X","X"]
["AFILIADO PARTICIPE",53,"X",null,"X","X","X","X","X"]
["PREPENSIONADO DE ENTIDAD EN LIQUIDACIÓN.",54]
[]
[]
["Tabla 9.  R04 - Regla de validación – Tipo de Cotizante  Vs Tipo  de Aportantes"]
["TIPO COTIZANTE","CODIGO","Tipo de Aportante"]
[null,null,1,3,5,6,2,4,8,7,9,10,11]
["DEPENDIENTE",1,"X","X",null,"X"]
["SERVICIO DOMESTICO",2,null,null,null,null,"X"]
["INDEPENDIENTE",3,null,null,null,null,"X",null,null,null,"X"]
["MADRE COMUNITARIA",4,null,null,null,null,null,null,null,"X"]
["APRENDICES DEL SENA EN ETAPA LECTIVA",12,"X","X",null,"X"]
["DESEMPLEADO CON SUBSIDIO DE CAJA DE COMPENSACION FAMILIAR",15,"X"]
["INDEPENDIENTE AGREMIADO O ASOCIADO",16,null,null,null,null,null,"X"]
["FUNCIONARIOS PUBLICOS SIN TOPE MAXIMO DE IBC",18,"X","X"]
["APRENDICES DEL SENA EN ETAPA PRODUCTIVA",19,"X","X",null,"X"]
["ESTUDIANTES (REGIMEN ESPECIAL LEY 789 DE 2002)",20,"X","X",null,"X"]
["ESTUDIANTES DE POSTGRADO EN SALUD",21,"X","X",null,"X"]
["PROFESOR DE ESTABLECIMIENTO PARTICULAR",22,"X"]
["DEPENDIENTE ENTIDADES O UNIVERSIDADES PUBLICAS CON REGIMEN ESPECIAL EN SALUD",30,"X"]
["COOPERADOS O PRECOOPERATIVAS DE TRABAJO ASOCIADO",31,null,null,"X"]
["COTIZANTE MIEMBRO DE LA CARRERA DIPLOMATICA O CONSULAR DE UN PAIS EXTRANJERO O FUNCIONARIO DE ORGANISMO MULTILATERAL",32,null,null,null,"X"]
["BENEFICIARIO DEL FONDO DE SOLIDARIDAD PENSIONAL",33,null,null,null,null,"X"]
["CONCEJAL MUNICIPAL O DISTRITAL O EDIL DE JUNTA ADMINISTRATIVA LOCAL QUE PERCIBE HONORARIOS AMPARADO POR POLIZA DE SALUD",34,null,null,null,null,null,null,"X"]
["CONCEJAL MUNICIPAL O DISTRITAL QUE PERCIBE HONORARIOS NO AMPARADO CON PÓLIZA DE SALUD",35,null,null,null,null,null,null,"X"]
["CONCEJAL MUNICIPAL O DISTRITAL QUE PERCIBE HONORARIOS NO AMPARADO CON PÓLIZA DE SALUD BENEFICIARIO DEL FONDO DE SOLIDARIDAD PENSIONAL.",36,null,null,null,null,null,null,"X"]
["BENEFICIARIO UPC ADICIONAL",40,"X","X","X","X","X","X","X","X","X","X"]
["BENEFICIARIO SIN INGRESOS CON PAGO POR TERCERO",41]
["COTIZANTE PAGO SOLO SALUD ARTICULO 2 LEY 1250 DE 2008 (INDEPENDIENTES DE BAJOS INGRESOS)",42,null,null,null,null,"X"]
["COTIZANTE VOLUNTARIO A PENSIONES CON PAGO POR TERCERO",43,null,null,null,null,"X"]
["COTIZANTE DEPENDIENTE DE EMPLEO DE EMERGENCIA CON DURACION MAYOR O IGUAL A UN MES",44,"X"]
["COTIZANTE DEPENDIENTE DE EMPLEO DE EMERGENCIA CON DURACION MENOR A UN MES",45,"X"]
["TRABAJADOR DEPENDIENTE DE ENTIDAD BENEFICIARIA DEL SISTEMA GENERAL DE PARTICIPACIONES - APORTES PATRONALES",47,"X"]
["TRABAJADOR DE TIEMPO PARCIAL DECRETO 2616 DE 2013 AFILIADO AL RÉGIMEN SUBSIDIADO EN SALUD",51,"X"]
["BENEFICIARIO DEL MECANISMO DE PROTECCIÓN AL CESANTE",52,"X"]
["AFILIADO PARTICIPE",53,null,null,null,null,null,null,null,null,null,"X"]
["PREPENSIONADO DE ENTIDAD EN LIQUIDACIÓN.",54,null,null,null,null,null,null,null,null,null,null,"X"]
[]
[]
["Subtipo cotizante  Vs. Aporte a PENSION"]
["SUBTIPO COTIZANTE","CODIGO","Aporte PENSIÓN"]
["DEPENDIENTE PENSIONADO POR VEJEZ ACTIVO",1,null,null,null,null,null,null,null,null,null,null,{"$f":"B110&\". \"&A110","v":"1. DEPENDIENTE PENSIONADO POR VEJEZ ACTIVO"}]
["INDEPENDIENTE PENSIONADO POR VEJEZ ACTIVO",2,null,null,null,null,null,null,null,null,null,null,"2. INDEPENDIENTE PENSIONADO POR VEJEZ ACTIVO"]
["COTIZANTE NO OBLIGADO A COTIZAR A PENSIÓN POR EDAD",3,null,null,null,null,null,null,null,null,null,null,"3. COTIZANTE NO OBLIGADO A COTIZAR A PENSIÓN POR EDAD"]
["COTIZANTE CON REQUISITOS CUMPLIDOS PARA PENSIÓN",4,null,null,null,null,null,null,null,null,null,null,"4. COTIZANTE CON REQUISITOS CUMPLIDOS PARA PENSIÓN"]
["COTIZANTE A QUIEN SE LE HA RECONOCIDO INDEMNIZACIÓN SUSTITUTIVA O DEVOLUCIÓN DE SALDOS",5,null,null,null,null,null,null,null,null,null,null,"5. COTIZANTE A QUIEN SE LE HA RECONOCIDO INDEMNIZACIÓN SUSTITUTIVA O DEVOLUCIÓN DE SALDOS"]
["COTIZANTE PERTENECIENTE A UN RÉGIMEN DE EXCEPTUADO DE PENSIONES A ENTIDADES AUTORIZADAS PARA RECIBIR APORTES EXCLUSIVAMENTE DE UN GRUPO DE SUS PROPIOS TRABAJADORES",6,null,null,null,null,null,null,null,null,null,null,"6. COTIZANTE PERTENECIENTE A UN RÉGIMEN DE EXCEPTUADO DE PENSIONES A ENTIDADES AUTORIZADAS PARA RECIBIR APORTES EXCLUSIVAMENTE DE UN GRUPO DE SUS PROPIOS TRABAJADORES"]
["COTIZANTE PENSIONADO CON MESADA SUPERIOR A 25 SMLMV",9,null,null,null,null,null,null,null,null,null,null,"9. COTIZANTE PENSIONADO CON MESADA SUPERIOR A 25 SMLMV"]
["RESIDENTE EN EL EXTERIOR AFILIADO VOLUNTARIO AL SISTEMA GENERAL DE PENSIONES Y/O  AFILIADO  FACULTATIVO AL SISTEMA DE SUBSIDIO FAMILIAR DECRETO 682 DE 2014",10,null,null,null,null,null,null,null,null,null,null,"10. RESIDENTE EN EL EXTERIOR AFILIADO VOLUNTARIO AL SISTEMA GENERAL DE PENSIONES Y/O  AFILIADO  FACULTATIVO AL SISTEMA DE SUBSIDIO FAMILIAR DECRETO 682 DE 2014"]
["CONDUCTORES DEL SERVICIO PÚBLICO DE TRANSPORTE TERRESTRE AUTOMOTOR INDIVIDUAL DE PASAJEROS EN VEHÍCULOS TAXI DECRETO 1047 DE 2014",11,"X",null,null,null,null,null,null,null,null,null,"11. CONDUCTORES DEL SERVICIO PÚBLICO DE TRANSPORTE TERRESTRE AUTOMOTOR INDIVIDUAL DE PASAJEROS EN VEHÍCULOS TAXI DECRETO 1047 DE 2014"]
["CONDUCTORES SERVICIO TAXI NO APORTE PENSIÓN DEC. 1047",12,null,null,null,null,null,null,null,null,null,null,"12. CONDUCTORES SERVICIO TAXI NO APORTE PENSIÓN DEC. 1047"]
[]
[]
["3. MALLA TIPO DOCUMENTO"]
["DESCRIPCION","SIGLA"]
["CEDULA CIUDADANIA","CC"]
["CEDULA EXTRANJERIA","CE"]
["TARJETA DE IDENTIDAD","TI"]
["PASAPORTE","PA"]
["NIT","NI"]
[]
[]
["4. MALLA MESES"]
["DESCRIPCION","CODIGO"]
["ENERO",1]
["FEBRERO",2]
["MARZO",3]
["ABRIL",4]
["MAYO",5]
["JUNIO",6]
["JULIO",7]
["AGOSTO",8]
["SEPTIEMBRE",9]
["OCTUBRE",10]
["NOVIEMBRE",11]
["DICIEMBRE",12]
[]
[]
["5. MALLA TIPO DE PAGO"]
["DESCRIPCION"]
["TP SALARIAL"]
["TP NO SALARIAL"]
["TP NO SALARIAL MARCADO SALARIAL POR LA UGPP"]
["TP COMPENSACIÓN ORDINARIA"]
["TP COMPENSACIÓN EXTRAORDINARIA"]
["TP NO COMPENSACIÓN"]
["TP NO COMPENSACIÓN MARCADA COMO COMP.EXTRAORDINARIA"]
["TP INCAPACIDAD"]
["TP VACACIONES"]
["TP LICENCIA REMUNERADA"]
["TP NO SALARIAL PUBLICA"]
["TP NO SALARIAL PUBLICA"]
[]
[]
["6. MALLA TIPO DE APORTANTE"]
["DESCRIPCION","CODIGO"]
["EMPLEADOR",1]
["INDEPENDIENTE",2]
["ENTIDADES O UNIVERSIDADES PÚBLICAS CON RÉGIMEN ESPECIAL EN SALUD",3]
["AGREMIACIONES O ASOCIACIONES",4]
["COOPERATIVAS Y PRECOOPERATIVAS DE TRABAJO ASOCIADO",5]
["MISIONES DIPLOMÁTICAS, CONSULARES O DE ORGANISMOS MULTILATERALES NO SOMETIDOS A LA LEGISLACIÓN COLOMBIANA",6]
["ORGANIZACIONES ADMINISTRADORAS DEL PROGRAMA DE HOGARES DE BIENESTAR",7]
["PAGADOR DE APORTES DE LOS CONCEJALES MUNICIPALES O DISTRITALES",8]
["PAGADOR DE APORTES CONTRATO SINDICAL",9]
[]
[]
["7. MALLA NATURALEZA JURIDICA"]
["DESCRIPCION","CODIGO"]
["PÚBLICA",1]
["PRIVADA",2]
["MIXTA",3]
["ORGANISMOS MULTILATERALES",4]
["ENTIDADES DE DERECHO PÚBLICO NO SOMETIDAS A LA LEGISLACIÓN COLOMBIANA",5]
[]
[]
["8. MALLA SUB SISTEMA ASOCIADO"]
["DESCRIPCION","CODIGO"]
["SALUD",1]
["PENSION",2]
["ARL",3]
["CCF",4]
["SENA",5]
["ICBF",6]

{"sheet":"Subsistemas x Tipo de Pago","index":4,"n_rows":20,"n_cols":13,"rows_kept":20,"cut":false,"hidden":true,"merged":[]}
[]
[]
[null,null,null,null,"SUBSISTEMAS"]
[null,"NATURALEZA JURIDICA","TIPO DE APORTANTE","TIPO DE PAGO UGPP","SALUD","PENSION","RIESGOS LABORALES","CAJA DE COMPENSACION","SENA","ICBF","NOMBRE CONCEPTO UGPP"]
[null,"1 Pública\n2 Privada\n3 Mixta\n4 Organismos multilaterales\n5 Entidades de derecho público no sometidas a la legislación colombiana","1 Empleador.\n2 Independiente.\n3 Entidades o Universidades Públicas con régimen especial en Salud.\n4 Agremiaciones o asociaciones.\n5 Cooperativas y Precooperativas de Trabajo Asociado\n6 Misiones diplomáticas, consulares o de organismos multilaterales no sometidos a la legislación colombiana.\n7 Organizaciones Administradoras del Programa de Hogares de Bienestar.\n8 Pagador de aportes de los concejales municipales o distritales.\n9 Pagador de aportes contrato sindical","TP SALARIAL",1,2,3,4,5,6,"SUELDOS\nAPOYO SOSTENIMIENTO\nCOMISIONES\nHORAS EXTRAS\nBONIFICACIONES\nPRIMAS\nVIATICOS\nAUXILIOS\nOTROS PAGOS",null,"1;2;3;4;5;6"]
[null,"2 Privada\n3 Mixta\n4 Organismos multilaterales\n5 Entidades de derecho público no sometidas a la legislación colombiana","1 Empleador.\n2 Independiente.\n3 Entidades o Universidades Públicas con régimen especial en Salud.\n4 Agremiaciones o asociaciones.\n5 Cooperativas y Precooperativas de Trabajo Asociado\n6 Misiones diplomáticas, consulares o de organismos multilaterales no sometidos a la legislación colombiana.\n7 Organizaciones Administradoras del Programa de Hogares de Bienestar.\n8 Pagador de aportes de los concejales municipales o distritales.\n9 Pagador de aportes contrato sindical","TP NO SALARIAL",null,null,null,null,null,null,"BONIFICACIONES\nPRIMAS\nVIATICOS\nAUXILIOS\nOTROS PAGOS"]
[null,"1 Pública\n2 Privada\n3 Mixta\n4 Organismos multilaterales\n5 Entidades de derecho público no sometidas a la legislación colombiana","1 Empleador.\n2 Independiente.\n3 Entidades o Universidades Públicas con régimen especial en Salud.\n4 Agremiaciones o asociaciones.\n5 Cooperativas y Precooperativas de Trabajo Asociado\n6 Misiones diplomáticas, consulares o de organismos multilaterales no sometidos a la legislación colombiana.\n7 Organizaciones Administradoras del Programa de Hogares de Bienestar.\n8 Pagador de aportes de los concejales municipales o distritales.\n9 Pagador de aportes contrato sindical","TP NO SALARIAL MARCADO SALARIAL POR LA UGPP",1,2,3,4,5,6,"BONIFICACIONES\nPRIMAS\nVIATICOS\nAUXILIOS\nOTROS PAGOS",null,"1;2;3;4;5;6"]
[null,"2 Privada\n","5 Cooperativas y Precooperativas de Trabajo Asociado","TP COMPENSACIÓN ORDINARIA",1,2,3,4,5,6,"COMP. ORDINARIA\n",null,"1;2;3;4;5;6"]
[null,"2 Privada\n","5 Cooperativas y Precooperativas de Trabajo Asociado","TP COMPENSACIÓN EXTRAORDINARIA",1,2,3,4,null,null,"COMP. EXTRAORDINARIA\n",null,"1;2;3;4"]
[null,"2 Privada\n","5 Cooperativas y Precooperativas de Trabajo Asociado","TP NO COMPENSACIÓN",null,null,null,null,null,null,"BONIFICACIONES\nPRIMAS\nVIATICOS\nAUXILIOS\nOTROS PAGOS"]
[null,"2 Privada\n","5 Cooperativas y Precooperativas de Trabajo Asociado","TP NO COMPENSACIÓN MARCADA COMO COMP.EXTRAORDINARIA",1,2,3,4,null,null,"BONIFICACIONES\nPRIMAS\nVIATICOS\nAUXILIOS\nOTROS PAGOS",null,"1;2;3;4"]
[null,"1 Pública\n2 Privada\n3 Mixta\n4 Organismos multilaterales\n5 Entidades de derecho público no sometidas a la legislación colombiana","1 Empleador.\n2 Independiente.\n3 Entidades o Universidades Públicas con régimen especial en Salud.\n4 Agremiaciones o asociaciones.\n5 Cooperativas y Precooperativas de Trabajo Asociado\n6 Misiones diplomáticas, consulares o de organismos multilaterales no sometidos a la legislación colombiana.\n7 Organizaciones Administradoras del Programa de Hogares de Bienestar.\n8 Pagador de aportes de los concejales municipales o distritales.\n9 Pagador de aportes contrato sindical","TP INCAPACIDAD",1,2,null,null,null,null,"INCAPACIDADES\n",null,"1;2"]
[null,"1 Pública\n2 Privada\n3 Mixta\n4 Organismos multilaterales\n5 Entidades de derecho público no sometidas a la legislación colombiana","1 Empleador.\n2 Independiente.\n3 Entidades o Universidades Públicas con régimen especial en Salud.\n4 Agremiaciones o asociaciones.\n5 Cooperativas y Precooperativas de Trabajo Asociado\n6 Misiones diplomáticas, consulares o de organismos multilaterales no sometidos a la legislación colombiana.\n7 Organizaciones Administradoras del Programa de Hogares de Bienestar.\n8 Pagador de aportes de los concejales municipales o distritales.\n9 Pagador de aportes contrato sindical","TP VACACIONES",null,null,null,4,5,6,"VACACIONES\n",null,"4;5;6"]
[null,"1 Pública\n2 Privada\n3 Mixta\n4 Organismos multilaterales\n5 Entidades de derecho público no sometidas a la legislación colombiana","1 Empleador.\n2 Independiente.\n3 Entidades o Universidades Públicas con régimen especial en Salud.\n4 Agremiaciones o asociaciones.\n5 Cooperativas y Precooperativas de Trabajo Asociado\n6 Misiones diplomáticas, consulares o de organismos multilaterales no sometidos a la legislación colombiana.\n7 Organizaciones Administradoras del Programa de Hogares de Bienestar.\n8 Pagador de aportes de los concejales municipales o distritales.\n9 Pagador de aportes contrato sindical","TP VACACIONES TERMINACION DE CONTRATO",null,null,null,4,5,6,"VACACIONES TERMINACION DE CONTRATO",null,"4;5;6"]
[null,"1 Pública\n2 Privada\n3 Mixta\n4 Organismos multilaterales\n5 Entidades de derecho público no sometidas a la legislación colombiana","1 Empleador.\n2 Independiente.\n3 Entidades o Universidades Públicas con régimen especial en Salud.\n4 Agremiaciones o asociaciones.\n5 Cooperativas y Precooperativas de Trabajo Asociado\n6 Misiones diplomáticas, consulares o de organismos multilaterales no sometidos a la legislación colombiana.\n7 Organizaciones Administradoras del Programa de Hogares de Bienestar.\n8 Pagador de aportes de los concejales municipales o distritales.\n9 Pagador de aportes contrato sindical","TP LICENCIA REMUNERADA",null,null,null,null,null,null,"LICENCIA REMUNERADA"]
[null,"1 Pública\n","1 Empleador.\n3 Entidades o Universidades Públicas con régimen especial en Salud.\n6 Misiones diplomáticas, consulares o de organismos multilaterales no sometidos a la legislación colombiana.\n7 Organizaciones Administradoras del Programa de Hogares de Bienestar.\n8 Pagador de aportes de los concejales municipales o distritales.\n9 Pagador de aportes contrato sindical","TP NO SALARIAL PUBLICA",null,null,null,null,null,null,"BONIFICACIONES\nPRIMAS\nVIATICOS\nAUXILIOS\nOTROS PAGOS"]
[null,"1 Pública\n","1 Empleador.\n3 Entidades o Universidades Públicas con régimen especial en Salud.\n6 Misiones diplomáticas, consulares o de organismos multilaterales no sometidos a la legislación colombiana.\n7 Organizaciones Administradoras del Programa de Hogares de Bienestar.\n8 Pagador de aportes de los concejales municipales o distritales.\n9 Pagador de aportes contrato sindical","TP NO SALARIAL PUBLICA NO ACEPTADO UGPP","NO VALIDAR","NO VALIDAR","NO VALIDAR","NO VALIDAR","NO VALIDAR","NO VALIDAR","BONIFICACIONES\nPRIMAS\nVIATICOS\nAUXILIOS\nOTROS PAGOS"]
[null,"2 Privada","2 Independiente.","TP CONTRATISTA",1,2,3,null,null,null,"SUELDOS",null,"1;2;3"]
[null,"2 Privada","2 Independiente.","TP NO CONTRATISTA",1,2,null,null,null,null,"SUELDOS",null,"1;2"]
[null,"1 Pública\n2 Privada\n3 Mixta\n4 Organismos multilaterales\n5 Entidades de derecho público no sometidas a la legislación colombiana","1 Empleador.\n3 Entidades o Universidades Públicas con régimen especial en Salud.\n4 Agremiaciones o asociaciones.\n5 Cooperativas y Precooperativas de Trabajo Asociado\n6 Misiones diplomáticas, consulares o de organismos multilaterales no sometidos a la legislación colombiana.\n7 Organizaciones Administradoras del Programa de Hogares de Bienestar.\n8 Pagador de aportes de los concejales municipales o distritales.","TP PRESTACIONES",null,null,null,null,null,null,"CESANTIAS\nINTERESES DE CESANTIAS\nPRIMAS"]

{"sheet":"TABLAS","index":5,"n_rows":119,"n_cols":33,"rows_kept":119,"cut":false,"hidden":true,"merged":[]}
[]
[]
[]
["TIPO DOCUMENTO APORTANTE","NATURALEZA JURIDICA","TIPO DE APORTANTE","APORTA ESAP Y MEN","SUJETO PASIVO DEL IMPUESTO SOBRE LA RENTA PARA LA EQUIDAD CREE","TIPO DE ACTO","TIPO COTIZANTE","SUBTIPO COTIZANTE","CONDICION ESPECIAL EMPRESA","EXTRANJERO NO OBLIGADO A COTIZAR PENSION","COLOMBIANO EN EL EXTERIOR","ACTIVIDAD ALTO RIESGO PENSION","TIPO DOCUMENTO ACTUAL DEL COTIZANTE","AÑO","MES","SALARIO INTEGRAL",null,"LLAVE","GRUPO",null,"NATURALEZA JURIDICA","TIPO DE APORTANTE","LLAVE","GRUPO","TIPO DE PAGO UGPP",null,"TIPO DE PAGO UGPP","GRUPO TP","SUBSISTEMAS",null,"TIPO DE PAGO UGPP","GRUPO TP","NOMBRE CONCEPTO UGPP"]
[null,null,null,null,null,null,null,null,null,null,null,null,null,null,null,null,null,"11","PublicaEmp",null,"1 Pública","1 Empleador.",11,"PublicaEmp","TP SALARIAL","Y5","TP SALARIAL","SAL","1;2;3;4;5;6",null,"TP SALARIAL","SAL","SUELDOS"]
["CC",1,1,"X","SI","REQUERIMIENTO",1,0,"LEY 590/2000 AÑO 1","X","X","X","CC",2007,1,"X",null,"13","PublicaUniv",null,"1 Pública","1 Empleador.",11,"PublicaEmp","TP INCAPACIDAD","Y6","TP NO SALARIAL MARCADO SALARIAL POR LA UGPP","NOSALX","1;2;3;4;5;6",null,"TP SALARIAL","SAL","APOYO SOSTENIMIENTO"]
["CE",2,2,null,"NO","AMPLIACIÓN",2,1,"LEY 590/2000 AÑO 2",null,null,null,"CE",2008,2,null,null,"18","PublicaConc",null,"1 Pública","1 Empleador.",11,"PublicaEmp","TP VACACIONES","Y7","TP COMPENSACIÓN ORDINARIA","COMPORD","1;2;3;4;5;6",null,"TP SALARIAL","SAL","COMISIONES"]
["TI",3,3,null,null,"LIQUIDACIÓN",3,2,"LEY 590/2000 AÑO 3",null,null,null,"TI",2009,3,null,null,"19","PublicaSind",null,"1 Pública","1 Empleador.",11,"PublicaEmp","TP VACACIONES TERMINACION DE CONTRATO","Y8","TP COMPENSACIÓN EXTRAORDINARIA","COMPEXT","1;2;3;4",null,"TP SALARIAL","SAL","HORAS EXTRAS"]
["PA",4,4,null,null,"RECURSO",4,3,"LEY 1429 Col AÑO 1,2",null,null,null,"PA",2010,4,null,null,"21","PrivadaEmp",null,"1 Pública","1 Empleador.",11,"PublicaEmp","TP LICENCIA REMUNERADA","Y9","TP NO COMPENSACIÓN MARCADA COMO COMP.EXTRAORDINARIA","NOCOMPX","1;2;3;4",null,"TP SALARIAL","SAL","BONIFICACIONES"]
["NI",5,5,null,null,null,12,4,"LEY 1429 Col AÑO 3",null,null,null,"NI",2011,5,null,null,"22","PrivadaInd",null,"1 Pública","1 Empleador.",11,"PublicaEmp","TP NO SALARIAL PUBLICA","Y10","TP INCAPACIDAD","INCAP","1;2",null,"TP SALARIAL","SAL","PRIMAS"]
[null,null,6,null,null,null,15,5,"LEY 1429 Col AÑO 4",null,null,null,null,2012,6,null,null,"24","PrivadaAgrem",null,"1 Pública","1 Empleador.",11,"PublicaEmp","TP PRESTACIONES","Y11","TP VACACIONES","VACA","4;5;6",null,"TP SALARIAL","SAL","VIATICOS"]
[null,null,7,null,null,null,16,6,"LEY 1429 Col AÑO 5",null,null,null,null,2013,7,null,null,"25","PrivadaCTA","TP NO SALARIAL PUBLICA NO ACEPTADO UGPP","1 Pública","1 Empleador.",11,"PublicaEmp",null,"Y12","TP VACACIONES TERMINACION DE CONTRATO","VACAT","4;5;6",null,"TP SALARIAL","SAL","AUXILIOS"]
[null,null,8,null,null,null,18,9,"LEY 1429 AGV AÑO 1 - 8",null,null,null,null,2014,8,null,null,"27","PrivadaHorg",null,"1 Pública","3 Entidades o Universidades Públicas con régimen especial en Salud.",13,"PublicaUniv","TP SALARIAL","Y13","TP CONTRATISTA","CONTRA","1;2;3",null,"TP SALARIAL","SAL","OTROS PAGOS"]
[null,null,null,null,null,null,19,10,"LEY 1429 AGV AÑO 9",null,null,null,null,2015,9,null,null,"29","PrivadaSind",null,"1 Pública","3 Entidades o Universidades Públicas con régimen especial en Salud.",13,"PublicaUniv","TP INCAPACIDAD","Y14","TP NO CONTRATISTA","NOCONTRA","1;2",null,"TP NO SALARIAL","NOSAL","BONIFICACIONES"]
[null,null,null,null,null,null,20,11,"LEY 1429 AGV AÑO 10",null,null,null,null,2016,10,null,null,"31","MixtaEmp",null,"1 Pública","3 Entidades o Universidades Públicas con régimen especial en Salud.",13,"PublicaUniv","TP VACACIONES","Y15","TP PRESTACIONES","PRESTAC",null,null,"TP NO SALARIAL","NOSAL","PRIMAS"]
[null,null,null,null,null,null,21,12,"Soc.declaradas ZF. Art20 Ley1607",null,null,null,null,2017,11,null,null,"39","MixtaSind",null,"1 Pública","3 Entidades o Universidades Públicas con régimen especial en Salud.",13,"PublicaUniv","TP VACACIONES TERMINACION DE CONTRATO","Y16","TP NO SALARIAL","NOSAL",null,null,"TP NO SALARIAL","NOSAL","VIATICOS"]
[null,null,null,null,null,null,22,null,"Excepción SENA Art.181,Ley 223/95",null,null,null,null,2018,12,null,null,"46","OrgMisionD",null,"1 Pública","3 Entidades o Universidades Públicas con régimen especial en Salud.",13,"PublicaUniv","TP LICENCIA REMUNERADA","Y17","TP NO COMPENSACIÓN","NOCOMP",null,null,"TP NO SALARIAL","NOSAL","AUXILIOS"]
[null,null,null,null,null,null,30,null,"Conv.Sub.Fam.Art.17Ley 344/96",null,null,null,null,2019,null,null,null,"56","EntMisionD",null,"1 Pública","3 Entidades o Universidades Públicas con régimen especial en Salud.",13,"PublicaUniv","TP NO SALARIAL PUBLICA","Y18","TP LICENCIA REMUNERADA","LICREM",null,null,"TP NO SALARIAL","NOSAL","OTROS PAGOS"]
[null,null,null,null,null,null,31,null,null,null,null,null,null,2020,null,null,null,null,null,null,"1 Pública","3 Entidades o Universidades Públicas con régimen especial en Salud.",13,"PublicaUniv","TP PRESTACIONES","Y19","TP NO SALARIAL PUBLICA","NOSALPUB",null,null,"TP NO SALARIAL MARCADO SALARIAL POR LA UGPP","NOSALX","BONIFICACIONES"]
[null,null,null,null,null,null,32,null,null,null,null,null,null,2021,null,null,null,null,null,"TP NO SALARIAL PUBLICA NO ACEPTADO UGPP","1 Pública","3 Entidades o Universidades Públicas con régimen especial en Salud.",13,"PublicaUniv",null,"Y20","TP NO SALARIAL PUBLICA NO ACEPTADO UGPP","NOSALPUBX",null,null,"TP NO SALARIAL MARCADO SALARIAL POR LA UGPP","NOSALX","PRIMAS"]
[null,null,null,null,null,null,33,null,null,null,null,null,null,2022,null,null,null,null,null,null,"1 Pública","8 Pagador de aportes de los concejales municipales o distritales.",18,"PublicaConc","TP SALARIAL","Y21",null,null,null,null,"TP NO SALARIAL MARCADO SALARIAL POR LA UGPP","NOSALX","VIATICOS"]
[null,null,null,null,null,null,34,null,null,null,null,null,null,2023,null,null,null,null,null,null,"1 Pública","8 Pagador de aportes de los concejales municipales o distritales.",18,"PublicaConc","TP INCAPACIDAD","Y22",null,null,null,null,"TP NO SALARIAL MARCADO SALARIAL POR LA UGPP","NOSALX","AUXILIOS"]
[null,null,null,null,null,null,35,null,null,null,null,null,null,2024,null,null,null,null,null,null,"1 Pública","8 Pagador de aportes de los concejales municipales o distritales.",18,"PublicaConc","TP VACACIONES","Y23",null,null,null,null,"TP NO SALARIAL MARCADO SALARIAL POR LA UGPP","NOSALX","OTROS PAGOS"]
[null,null,null,null,null,null,36,null,null,null,null,null,null,2025,null,null,null,null,null,null,"1 Pública","8 Pagador de aportes de los concejales municipales o distritales.",18,"PublicaConc","TP VACACIONES TERMINACION DE CONTRATO","Y24",null,null,null,null,"TP COMPENSACIÓN ORDINARIA","COMPORD","COMP. ORDINARIA"]
[null,"Publica","X",null,null,null,40,null,null,null,null,null,null,2026,null,null,null,null,null,null,"1 Pública","8 Pagador de aportes de los concejales municipales o distritales.",18,"PublicaConc","TP LICENCIA REMUNERADA","Y25",null,null,null,null,"TP COMPENSACIÓN EXTRAORDINARIA","COMPEXT","COMP. EXTRAORDINARIA"]
[null,"Publica",null,null,null,null,41,null,null,null,null,null,null,2027,null,null,null,null,null,null,"1 Pública","8 Pagador de aportes de los concejales municipales o distritales.",18,"PublicaConc","TP NO SALARIAL PUBLICA","Y26",null,null,null,null,"TP NO COMPENSACIÓN","NOCOMP","BONIFICACIONES"]
[null,"No_Publica",null,null,null,null,42,null,null,null,null,null,null,2028,null,null,null,null,null,null,"1 Pública","8 Pagador de aportes de los concejales municipales o distritales.",18,"PublicaConc","TP PRESTACIONES","Y27",null,null,null,null,"TP NO COMPENSACIÓN","NOCOMP","PRIMAS"]
[null,null,null,null,null,null,43,null,null,null,null,null,null,2029,null,null,null,null,null,"TP NO SALARIAL PUBLICA NO ACEPTADO UGPP","1 Pública","8 Pagador de aportes de los concejales municipales o distritales.",18,"PublicaConc",null,"Y28",null,null,null,null,"TP NO COMPENSACIÓN","NOCOMP","VIATICOS"]
[null,null,null,null,null,null,44,null,null,null,null,null,null,2030,null,null,null,null,null,null,"1 Pública","9 Pagador de aportes contrato sindical",19,"PublicaSind","TP SALARIAL","Y29",null,null,null,null,"TP NO COMPENSACIÓN","NOCOMP","AUXILIOS"]
[null,null,null,null,null,null,45,null,null,null,null,null,null,2031,null,null,null,null,null,null,"1 Pública","9 Pagador de aportes contrato sindical",19,"PublicaSind","TP INCAPACIDAD","Y30",null,null,null,null,"TP NO COMPENSACIÓN","NOCOMP","OTROS PAGOS"]
[null,null,null,null,null,null,47,null,null,null,null,null,null,2032,null,null,null,null,null,null,"1 Pública","9 Pagador de aportes contrato sindical",19,"PublicaSind","TP VACACIONES","Y31",null,null,null,null,"TP NO COMPENSACIÓN MARCADA COMO COMP.EXTRAORDINARIA","NOCOMPX","BONIFICACIONES"]
[null,null,null,null,null,null,51,null,null,null,null,null,null,2033,null,null,null,null,null,null,"1 Pública","9 Pagador de aportes contrato sindical",19,"PublicaSind","TP VACACIONES TERMINACION DE CONTRATO","Y32",null,null,null,null,"TP NO COMPENSACIÓN MARCADA COMO COMP.EXTRAORDINARIA","NOCOMPX","PRIMAS"]
[null,null,null,null,null,null,52,null,null,null,null,null,null,2034,null,null,null,null,null,null,"1 Pública","9 Pagador de aportes contrato sindical",19,"PublicaSind","TP LICENCIA REMUNERADA","Y33",null,null,null,null,"TP NO COMPENSACIÓN MARCADA COMO COMP.EXTRAORDINARIA","NOCOMPX","VIATICOS"]
[null,null,null,null,null,null,53,null,null,null,null,null,null,2035,null,null,null,null,null,null,"1 Pública","9 Pagador de aportes contrato sindical",19,"PublicaSind","TP NO SALARIAL PUBLICA","Y34",null,null,null,null,"TP NO COMPENSACIÓN MARCADA COMO COMP.EXTRAORDINARIA","NOCOMPX","AUXILIOS"]
[null,null,null,null,null,null,54,null,null,null,null,null,null,2036,null,null,null,null,null,null,"1 Pública","9 Pagador de aportes contrato sindical",19,"PublicaSind","TP PRESTACIONES","Y35",null,null,null,null,"TP NO COMPENSACIÓN MARCADA COMO COMP.EXTRAORDINARIA","NOCOMPX","OTROS PAGOS"]
[null,null,null,null,null,null,null,null,null,null,null,null,null,2037,null,null,null,null,null,"TP NO SALARIAL PUBLICA NO ACEPTADO UGPP","1 Pública","9 Pagador de aportes contrato sindical",19,"PublicaSind",null,"Y36",null,null,null,null,"TP INCAPACIDAD","INCAP","INCAPACIDADES"]
[null,null,null,null,null,null,null,null,null,null,null,null,null,2038,null,null,null,null,null,null,"2 Privada","1 Empleador.",21,"PrivadaEmp","TP SALARIAL","Y37",null,null,null,null,"TP VACACIONES","VACA","VACACIONES"]
[null,null,null,null,null,null,null,null,null,null,null,null,null,2039,null,null,null,null,null,null,"2 Privada","1 Empleador.",21,"PrivadaEmp","TP NO SALARIAL","Y38",null,null,null,null,"TP VACACIONES TERMINACION DE CONTRATO","VACAT","VACACIONES TERMINACION DE CONTRATO"]
[null,null,null,null,null,null,null,null,null,null,null,null,null,2040,null,null,null,null,null,null,"2 Privada","1 Empleador.",21,"PrivadaEmp","TP INCAPACIDAD","Y39",null,null,null,null,"TP LICENCIA REMUNERADA","LICREM","LICENCIA REMUNERADA"]
[null,null,null,null,null,null,null,null,null,null,null,null,null,2041,null,null,null,null,null,null,"2 Privada","1 Empleador.",21,"PrivadaEmp","TP VACACIONES","Y40",null,null,null,null,"TP PRESTACIONES","PRESTAC","CESANTIAS"]
[null,null,null,null,null,null,null,null,null,null,null,null,null,2042,null,null,null,null,null,null,"2 Privada","1 Empleador.",21,"PrivadaEmp","TP VACACIONES TERMINACION DE CONTRATO","Y41",null,null,null,null,"TP PRESTACIONES","PRESTAC","INTERESES DE CESANTIAS"]
[null,null,null,null,null,null,null,null,null,null,null,null,null,2043,null,null,null,null,null,null,"2 Privada","1 Empleador.",21,"PrivadaEmp","TP LICENCIA REMUNERADA","Y42",null,null,null,null,"TP PRESTACIONES","PRESTAC","PRIMAS"]
[null,null,null,null,null,null,null,null,null,null,null,null,null,2044,null,null,null,null,null,null,"2 Privada","1 Empleador.",21,"PrivadaEmp","TP PRESTACIONES","Y43",null,null,null,null,"TP NO SALARIAL PUBLICA","NOSALPUB","BONIFICACIONES"]
[null,null,null,null,null,null,null,null,null,null,null,null,null,2045,null,null,null,null,null,"TP NO SALARIAL MARCADO SALARIAL POR LA UGPP","2 Privada","1 Empleador.",21,"PrivadaEmp",null,"Y44",null,null,null,null,"TP NO SALARIAL PUBLICA","NOSALPUB","PRIMAS"]
[null,null,null,null,null,null,null,null,null,null,null,null,null,2046,null,null,null,null,null,null,"2 Privada","2 Independiente.",22,"PrivadaInd","TP SALARIAL","Y45",null,null,null,null,"TP NO SALARIAL PUBLICA","NOSALPUB","VIATICOS"]
[null,null,null,null,null,null,null,null,null,null,null,null,null,2047,null,null,null,null,null,null,"2 Privada","2 Independiente.",22,"PrivadaInd","TP INCAPACIDAD","Y46",null,null,null,null,"TP NO SALARIAL PUBLICA","NOSALPUB","AUXILIOS"]
[null,null,null,null,null,null,null,null,null,null,null,null,null,2048,null,null,null,null,null,null,"2 Privada","2 Independiente.",22,"PrivadaInd","TP VACACIONES","Y47",null,null,null,null,"TP NO SALARIAL PUBLICA","NOSALPUB","OTROS PAGOS"]
[null,null,null,null,null,null,null,null,null,null,null,null,null,2049,null,null,null,null,null,null,"2 Privada","2 Independiente.",22,"PrivadaInd","TP NO CONTRATISTA","Y48",null,null,null,null,"TP NO SALARIAL PUBLICA NO ACEPTADO UGPP","NOSALPUBX","BONIFICACIONES"]
[null,null,null,null,null,null,null,null,null,null,null,null,null,2050,null,null,null,null,null,null,"2 Privada","2 Independiente.",22,"PrivadaInd","TP PRESTACIONES","Y49",null,null,null,null,"TP NO SALARIAL PUBLICA NO ACEPTADO UGPP","NOSALPUBX","PRIMAS"]
[null,null,null,null,null,null,null,null,null,null,null,null,null,null,null,null,null,null,null,null,"2 Privada","4 Agremiaciones o asociaciones.",24,"PrivadaAgrem","TP SALARIAL","Y50",null,null,null,null,"TP NO SALARIAL PUBLICA NO ACEPTADO UGPP","NOSALPUBX","VIATICOS"]
[null,null,null,null,null,null,null,null,null,null,null,null,null,null,null,null,null,null,null,null,"2 Privada","4 Agremiaciones o asociaciones.",24,"PrivadaAgrem","TP NO SALARIAL","Y51",null,null,null,null,"TP NO SALARIAL PUBLICA NO ACEPTADO UGPP","NOSALPUBX","AUXILIOS"]
[null,null,null,null,null,null,null,null,null,null,null,null,null,null,null,null,null,null,null,null,"2 Privada","4 Agremiaciones o asociaciones.",24,"PrivadaAgrem","TP INCAPACIDAD","Y52",null,null,null,null,"TP NO SALARIAL PUBLICA NO ACEPTADO UGPP","NOSALPUBX","OTROS PAGOS"]
[null,null,null,null,null,null,null,null,null,null,null,null,null,null,null,null,null,null,null,null,"2 Privada","4 Agremiaciones o asociaciones.",24,"PrivadaAgrem","TP VACACIONES","Y53",null,null,null,null,"TP CONTRATISTA","CONTRA","SUELDOS"]
[null,null,null,null,null,null,null,null,null,null,null,null,null,null,null,null,null,null,null,null,"2 Privada","4 Agremiaciones o asociaciones.",24,"PrivadaAgrem","TP VACACIONES TERMINACION DE CONTRATO","Y54",null,null,null,null,"TP NO CONTRATISTA","NOCONTRA","SUELDOS"]
[null,null,null,null,null,null,null,null,null,null,null,null,null,null,null,null,null,null,null,null,"2 Privada","4 Agremiaciones o asociaciones.",24,"PrivadaAgrem","TP LICENCIA REMUNERADA","Y55"]
[null,null,null,null,null,null,null,null,null,null,null,null,null,null,null,null,null,null,null,null,"2 Privada","4 Agremiaciones o asociaciones.",24,"PrivadaAgrem","TP CONTRATISTA","Y56"]
[null,null,null,null,null,null,null,null,null,null,null,null,null,null,null,null,null,null,null,null,"2 Privada","4 Agremiaciones o asociaciones.",24,"PrivadaAgrem","TP NO CONTRATISTA","Y57"]
[null,null,null,null,null,null,null,null,null,null,null,null,null,null,null,null,null,null,null,null,"2 Privada","4 Agremiaciones o asociaciones.",24,"PrivadaAgrem","TP PRESTACIONES","Y58"]
[null,null,null,null,null,null,null,null,null,null,null,null,null,null,null,null,null,null,null,"TP NO SALARIAL MARCADO SALARIAL POR LA UGPP","2 Privada","4 Agremiaciones o asociaciones.",24,"PrivadaAgrem",null,"Y59"]
[null,null,null,null,null,null,null,null,null,null,null,null,null,null,null,null,null,null,null,null,"2 Privada","5 Cooperativas y Precooperativas de Trabajo Asociado",25,"PrivadaCTA","TP SALARIAL","Y60"]
[null,null,null,null,null,null,null,null,null,null,null,null,null,null,null,null,null,null,null,null,"2 Privada","5 Cooperativas y Precooperativas de Trabajo Asociado",25,"PrivadaCTA","TP NO SALARIAL","Y61"]
[null,null,null,null,null,null,null,null,null,null,null,null,null,null,null,null,null,null,null,null,"2 Privada","5 Cooperativas y Precooperativas de Trabajo Asociado",25,"PrivadaCTA","TP COMPENSACIÓN ORDINARIA","Y62"]
[null,null,null,null,null,null,null,null,null,null,null,null,null,null,null,null,null,null,null,null,"2 Privada","5 Cooperativas y Precooperativas de Trabajo Asociado",25,"PrivadaCTA","TP COMPENSACIÓN EXTRAORDINARIA","Y63"]
[null,null,null,null,null,null,null,null,null,null,null,null,null,null,null,null,null,null,null,null,"2 Privada","5 Cooperativas y Precooperativas de Trabajo Asociado",25,"PrivadaCTA","TP NO COMPENSACIÓN","Y64"]
[null,null,null,null,null,null,null,null,null,null,null,null,null,null,null,null,null,null,null,null,"2 Privada","5 Cooperativas y Precooperativas de Trabajo Asociado",25,"PrivadaCTA","TP INCAPACIDAD","Y65"]
[null,null,null,null,null,null,null,null,null,null,null,null,null,null,null,null,null,null,null,null,"2 Privada","5 Cooperativas y Precooperativas de Trabajo Asociado",25,"PrivadaCTA","TP VACACIONES","Y66"]
[null,null,null,null,null,null,null,null,null,null,null,null,null,null,null,null,null,null,null,null,"2 Privada","5 Cooperativas y Precooperativas de Trabajo Asociado",25,"PrivadaCTA","TP VACACIONES TERMINACION DE CONTRATO","Y67"]
[null,null,null,null,null,null,null,null,null,null,null,null,null,null,null,null,null,null,null,null,"2 Privada","5 Cooperativas y Precooperativas de Trabajo Asociado",25,"PrivadaCTA","TP LICENCIA REMUNERADA","Y68"]
[null,null,null,null,null,null,null,null,null,null,null,null,null,null,null,null,null,null,null,null,"2 Privada","5 Cooperativas y Precooperativas de Trabajo Asociado",25,"PrivadaCTA","TP PRESTACIONES","Y69"]
[null,null,null,null,null,null,null,null,null,null,null,null,null,null,null,null,null,null,null,"TP NO SALARIAL MARCADO SALARIAL POR LA UGPP","2 Privada","5 Cooperativas y Precooperativas de Trabajo Asociado",25,"PrivadaCTA",null,"Y70"]
[null,null,null,null,null,null,null,null,null,null,null,null,null,null,null,null,null,null,null,"TP NO COMPENSACIÓN MARCADA COMO COMP.EXTRAORDINARIA","2 Privada","5 Cooperativas y Precooperativas de Trabajo Asociado",25,"PrivadaCTA",null,"Y71"]
[null,null,null,null,null,null,null,null,null,null,null,null,null,null,null,null,null,null,null,null,"2 Privada","7 Organizaciones Administradoras del Programa de Hogares de Bienestar.",27,"PrivadaHorg","TP SALARIAL","Y72"]
[null,null,null,null,null,null,null,null,null,null,null,null,null,null,null,null,null,null,null,null,"2 Privada","7 Organizaciones Administradoras del Programa de Hogares de Bienestar.",27,"PrivadaHorg","TP NO SALARIAL","Y73"]
[null,null,null,null,null,null,null,null,null,null,null,null,null,null,null,null,null,null,null,null,"2 Privada","7 Organizaciones Administradoras del Programa de Hogares de Bienestar.",27,"PrivadaHorg","TP INCAPACIDAD","Y74"]
[null,null,null,null,null,null,null,null,null,null,null,null,null,null,null,null,null,null,null,null,"2 Privada","7 Organizaciones Administradoras del Programa de Hogares de Bienestar.",27,"PrivadaHorg","TP VACACIONES","Y75"]
[null,null,null,null,null,null,null,null,null,null,null,null,null,null,null,null,null,null,null,null,"2 Privada","7 Organizaciones Administradoras del Programa de Hogares de Bienestar.",27,"PrivadaHorg","TP VACACIONES TERMINACION DE CONTRATO","Y76"]
[null,null,null,null,null,null,null,null,null,null,null,null,null,null,null,null,null,null,null,null,"2 Privada","7 Organizaciones Administradoras del Programa de Hogares de Bienestar.",27,"PrivadaHorg","TP LICENCIA REMUNERADA","Y77"]
[null,null,null,null,null,null,null,null,null,null,null,null,null,null,null,null,null,null,null,null,"2 Privada","7 Organizaciones Administradoras del Programa de Hogares de Bienestar.",27,"PrivadaHorg","TP PRESTACIONES","Y78"]
[null,null,null,null,null,null,null,null,null,null,null,null,null,null,null,null,null,null,null,"TP NO SALARIAL MARCADO SALARIAL POR LA UGPP","2 Privada","7 Organizaciones Administradoras del Programa de Hogares de Bienestar.",27,"PrivadaHorg",null,"Y79"]
[null,null,null,null,null,null,null,null,null,null,null,null,null,null,null,null,null,null,null,null,"2 Privada","9 Pagador de aportes contrato sindical",29,"PrivadaSind","TP SALARIAL","Y80"]
[null,null,null,null,null,null,null,null,null,null,null,null,null,null,null,null,null,null,null,null,"2 Privada","9 Pagador de aportes contrato sindical",29,"PrivadaSind","TP NO SALARIAL","Y81"]
[null,null,null,null,null,null,null,null,null,null,null,null,null,null,null,null,null,null,null,null,"2 Privada","9 Pagador de aportes contrato sindical",29,"PrivadaSind","TP INCAPACIDAD","Y82"]
[null,null,null,null,null,null,null,null,null,null,null,null,null,null,null,null,null,null,null,null,"2 Privada","9 Pagador de aportes contrato sindical",29,"PrivadaSind","TP VACACIONES","Y83"]
[null,null,null,null,null,null,null,null,null,null,null,null,null,null,null,null,null,null,null,null,"2 Privada","9 Pagador de aportes contrato sindical",29,"PrivadaSind","TP VACACIONES TERMINACION DE CONTRATO","Y84"]
[null,null,null,null,null,null,null,null,null,null,null,null,null,null,null,null,null,null,null,null,"2 Privada","9 Pagador de aportes contrato sindical",29,"PrivadaSind","TP LICENCIA REMUNERADA","Y85"]
[null,null,null,null,null,null,null,null,null,null,null,null,null,null,null,null,null,null,null,null,"2 Privada","9 Pagador de aportes contrato sindical",29,"PrivadaSind","TP PRESTACIONES","Y86"]
[null,null,null,null,null,null,null,null,null,null,null,null,null,null,null,null,null,null,null,"TP NO SALARIAL MARCADO SALARIAL POR LA UGPP","2 Privada","9 Pagador de aportes contrato sindical",29,"PrivadaSind",null,"Y87"]
[null,null,null,null,null,null,null,null,null,null,null,null,null,null,null,null,null,null,null,null,"3 Mixta","1 Empleador.",31,"MixtaEmp","TP SALARIAL","Y88"]
[null,null,null,null,null,null,null,null,null,null,null,null,null,null,null,null,null,null,null,null,"3 Mixta","1 Empleador.",31,"MixtaEmp","TP NO SALARIAL","Y89"]
[null,null,null,null,null,null,null,null,null,null,null,null,null,null,null,null,null,null,null,null,"3 Mixta","1 Empleador.",31,"MixtaEmp","TP INCAPACIDAD","Y90"]
[null,null,null,null,null,null,null,null,null,null,null,null,null,null,null,null,null,null,null,null,"3 Mixta","1 Empleador.",31,"MixtaEmp","TP VACACIONES","Y91"]
[null,null,null,null,null,null,null,null,null,null,null,null,null,null,null,null,null,null,null,null,"3 Mixta","1 Empleador.",31,"MixtaEmp","TP VACACIONES TERMINACION DE CONTRATO","Y92"]
[null,null,null,null,null,null,null,null,null,null,null,null,null,null,null,null,null,null,null,null,"3 Mixta","1 Empleador.",31,"MixtaEmp","TP LICENCIA REMUNERADA","Y93"]
[null,null,null,null,null,null,null,null,null,null,null,null,null,null,null,null,null,null,null,null,"3 Mixta","1 Empleador.",31,"MixtaEmp","TP PRESTACIONES","Y94"]
[null,null,null,null,null,null,null,null,null,null,null,null,null,null,null,null,null,null,null,"TP NO SALARIAL MARCADO SALARIAL POR LA UGPP","3 Mixta","1 Empleador.",31,"MixtaEmp",null,"Y95"]
[null,null,null,null,null,null,null,null,null,null,null,null,null,null,null,null,null,null,null,null,"3 Mixta","9 Pagador de aportes contrato sindical",39,"MixtaSind","TP SALARIAL","Y96"]
[null,null,null,null,null,null,null,null,null,null,null,null,null,null,null,null,null,null,null,null,"3 Mixta","9 Pagador de aportes contrato sindical",39,"MixtaSind","TP NO SALARIAL","Y97"]
[null,null,null,null,null,null,null,null,null,null,null,null,null,null,null,null,null,null,null,null,"3 Mixta","9 Pagador de aportes contrato sindical",39,"MixtaSind","TP INCAPACIDAD","Y98"]
[null,null,null,null,null,null,null,null,null,null,null,null,null,null,null,null,null,null,null,null,"3 Mixta","9 Pagador de aportes contrato sindical",39,"MixtaSind","TP VACACIONES","Y99"]
[null,null,null,null,null,null,null,null,null,null,null,null,null,null,null,null,null,null,null,null,"3 Mixta","9 Pagador de aportes contrato sindical",39,"MixtaSind","TP VACACIONES TERMINACION DE CONTRATO","Y100"]
[null,null,null,null,null,null,null,null,null,null,null,null,null,null,null,null,null,null,null,null,"3 Mixta","9 Pagador de aportes contrato sindical",39,"MixtaSind","TP LICENCIA REMUNERADA","Y101"]
[null,null,null,null,null,null,null,null,null,null,null,null,null,null,null,null,null,null,null,null,"3 Mixta","9 Pagador de aportes contrato sindical",39,"MixtaSind","TP PRESTACIONES","Y102"]
[null,null,null,null,null,null,null,null,null,null,null,null,null,null,null,null,null,null,null,"TP NO SALARIAL MARCADO SALARIAL POR LA UGPP","3 Mixta","9 Pagador de aportes contrato sindical",39,"MixtaSind",null,"Y103"]
[null,null,null,null,null,null,null,null,null,null,null,null,null,null,null,null,null,null,null,null,"4 Organismos multilaterales","6 Misiones diplomáticas, consulares o de organismos multilaterales no sometidos a la legislación colombiana.",46,"OrgMisionD","TP SALARIAL","Y104"]
[null,null,null,null,null,null,null,null,null,null,null,null,null,null,null,null,null,null,null,null,"4 Organismos multilaterales","6 Misiones diplomáticas, consulares o de organismos multilaterales no sometidos a la legislación colombiana.",46,"OrgMisionD","TP NO SALARIAL","Y105"]
[null,null,null,null,null,null,null,null,null,null,null,null,null,null,null,null,null,null,null,null,"4 Organismos multilaterales","6 Misiones diplomáticas, consulares o de organismos multilaterales no sometidos a la legislación colombiana.",46,"OrgMisionD","TP INCAPACIDAD","Y106"]
[null,null,null,null,null,null,null,null,null,null,null,null,null,null,null,null,null,null,null,null,"4 Organismos multilaterales","6 Misiones diplomáticas, consulares o de organismos multilaterales no sometidos a la legislación colombiana.",46,"OrgMisionD","TP VACACIONES","Y107"]
[null,null,null,null,null,null,null,null,null,null,null,null,null,null,null,null,null,null,null,null,"4 Organismos multilaterales","6 Misiones diplomáticas, consulares o de organismos multilaterales no sometidos a la legislación colombiana.",46,"OrgMisionD","TP VACACIONES TERMINACION DE CONTRATO","Y108"]
[null,null,null,null,null,null,null,null,null,null,null,null,null,null,null,null,null,null,null,null,"4 Organismos multilaterales","6 Misiones diplomáticas, consulares o de organismos multilaterales no sometidos a la legislación colombiana.",46,"OrgMisionD","TP LICENCIA REMUNERADA","Y109"]
[null,null,null,null,null,null,null,null,null,null,null,null,null,null,null,null,null,null,null,null,"4 Organismos multilaterales","6 Misiones diplomáticas, consulares o de organismos multilaterales no sometidos a la legislación colombiana.",46,"OrgMisionD","TP PRESTACIONES","Y110"]
[null,null,null,null,null,null,null,null,null,null,null,null,null,null,null,null,null,null,null,"TP NO SALARIAL MARCADO SALARIAL POR LA UGPP","4 Organismos multilaterales","6 Misiones diplomáticas, consulares o de organismos multilaterales no sometidos a la legislación colombiana.",46,"OrgMisionD",null,"Y111"]
[null,null,null,null,null,null,null,null,null,null,null,null,null,null,null,null,null,null,null,null,"5 Entidades de derecho público no sometidas a la legislación colombiana","6 Misiones diplomáticas, consulares o de organismos multilaterales no sometidos a la legislación colombiana.",56,"EntMisionD","TP SALARIAL","Y112"]
[null,null,null,null,null,null,null,null,null,null,null,null,null,null,null,null,null,null,null,null,"5 Entidades de derecho público no sometidas a la legislación colombiana","6 Misiones diplomáticas, consulares o de organismos multilaterales no sometidos a la legislación colombiana.",56,"EntMisionD","TP NO SALARIAL","Y113"]
[null,null,null,null,null,null,null,null,null,null,null,null,null,null,null,null,null,null,null,null,"5 Entidades de derecho público no sometidas a la legislación colombiana","6 Misiones diplomáticas, consulares o de organismos multilaterales no sometidos a la legislación colombiana.",56,"EntMisionD","TP INCAPACIDAD","Y114"]
[null,null,null,null,null,null,null,null,null,null,null,null,null,null,null,null,null,null,null,null,"5 Entidades de derecho público no sometidas a la legislación colombiana","6 Misiones diplomáticas, consulares o de organismos multilaterales no sometidos a la legislación colombiana.",56,"EntMisionD","TP VACACIONES","Y115"]
[null,null,null,null,null,null,null,null,null,null,null,null,null,null,null,null,null,null,null,null,"5 Entidades de derecho público no sometidas a la legislación colombiana","6 Misiones diplomáticas, consulares o de organismos multilaterales no sometidos a la legislación colombiana.",56,"EntMisionD","TP VACACIONES TERMINACION DE CONTRATO","Y116"]
[null,null,null,null,null,null,null,null,null,null,null,null,null,null,null,null,null,null,null,null,"5 Entidades de derecho público no sometidas a la legislación colombiana","6 Misiones diplomáticas, consulares o de organismos multilaterales no sometidos a la legislación colombiana.",56,"EntMisionD","TP LICENCIA REMUNERADA","Y117"]
[null,null,null,null,null,null,null,null,null,null,null,null,null,null,null,null,null,null,null,null,"5 Entidades de derecho público no sometidas a la legislación colombiana","6 Misiones diplomáticas, consulares o de organismos multilaterales no sometidos a la legislación colombiana.",56,"EntMisionD","TP PRESTACIONES","Y118"]
[null,null,null,null,null,null,null,null,null,null,null,null,null,null,null,null,null,null,null,"TP NO SALARIAL MARCADO SALARIAL POR LA UGPP","5 Entidades de derecho público no sometidas a la legislación colombiana","6 Misiones diplomáticas, consulares o de organismos multilaterales no sometidos a la legislación colombiana.",56,"EntMisionD",null,"Y119"]